Workbook

Sheet MultiStrategy-Monthly
A1: Multi Strategy Performance
A2: (20% pro forma performance fee deducted monthly, based on HWM) | K2: - Back testing results of the currently traded strategies
C5: Str. 1 | D5: Str. 2 | E5: Str. 3 | F5: Str. 4 | G5: Str. 5 | H5: Str. 6 | I5: Str. 7
A6: Month # | B6: Month | C6: FXQ9 | D6: FXIA | E6: FXBQ | F6: FXC | G6: V1 | H6: V2 | I6: V4 | J6: Comb. ROR (Before Fees) | K6: ROR<RF | L6: VAMI | M6: Max. VAMI | N6: Drawdown | O6: Perf. Fee | P6: ROR Net of Fee | Q6: VAMI Net of Fees | R6: SPX ROR | S6: SPX VAMI | T6: Strategy-SPX ROR
A7: 0 | B7: 2010-11-01 | L7: 1000 | M7: 1000 | Q7: 1000 | S7: 1000 | V7: Strategy weightings
A8: 1 | B8: 2010-12-01 | C8: -0.0001506190165 | D8: 0.01021289732 | E8: 0.001307093771 | G8: 0.034083 | H8: 0.0221 | I8: 0.0622 | J8: =($V$9*C8+$W$9*D8+$X$9*E8+$Z$9*G8+$AA$9*H8+$AB$9*I8)*$AC$9 -> 0.02595566451 | K8: =IF(J8<$Y$16/12,J8-$Y$16/12,"") ->  | L8: =L7*(1+J8) -> 1025.955665 | M8: =MAX(L8,M7) -> 1025.955665 | N8: =L8/M8-1 -> 0 | O8: =IF(N8=0,0.2*(L8/M7-1),0) -> 0.005191132902 | P8: =J8-O8 -> 0.02076453161 | Q8: =Q7*(1+P8) -> 1020.764532 | R8: -0.1099191166 | S8: =S7*(1+R8) -> 890.0808834 | T8: =J8-R8 -> 0.1358747811 | V8: FXQ | W8: FXIA | X8: FXBQ | Y8: FXC | Z8: V1 | AA8: V2 | AB8: V4 | AC8: Overlever.
A9: 2 | B9: 2011-01-01 | C9: 0.01707463712 | D9: 0.02037103102 | E9: 0.01549354848 | G9: 0.046418 | H9: 0.0088 | I9: 0.0366 | J9: =($V$9*C9+$W$9*D9+$X$9*E9+$Z$9*G9+$AA$9*H9+$AB$9*I9)*$AC$9 -> 0.02895723361 | L9: =L8*(1+J9) -> 1055.664502 | M9: =MAX(L9,M8) -> 1055.664502 | N9: =L9/M9-1 -> 0 | O9: =IF(N9=0,0.2*(L9/M8-1),0) -> 0.005791446722 | P9: 0.02316578689 | Q9: =Q8*(1+P9) -> 1044.411345 | R9: 0.08538974289 | S9: =S8*(1+R9) -> 966.0846612 | T9: -0.05643250928 | V9: 0.1667 | W9: 0.1667 | X9: 0.1667 | Z9: 0.1667 | AA9: 0.1667 | AB9: 0.1667 | AC9: 1.2 | AD9: Before Feb. 2013
A10: 3 | B10: 2011-02-01 | C10: 0.00387889822 | D10: 0.007341710851 | E10: 0.005007987376 | G10: -0.001047 | H10: 0.0089 | I10: 0.0144 | J10: 0.007697858553 | L10: =L9*(1+J10) -> 1063.790858 | M10: =MAX(L10,M9) -> 1063.790858 | N10: =L10/M10-1 -> 0 | O10: 0.001539571711 | P10: 0.006158286843 | Q10: 1050.84313 | R10: 0.09392507551 | S10: =S9*(1+R10) -> 1056.824236 | T10: -0.08622721696 | V10: 0.14286 | W10: 0.14286 | X10: 0.14286 | Y10: 0.14286 | Z10: 0.14286 | AA10: 0.14286 | AB10: 0.14286 | AC10: 1.2 | AD10: After Feb. 2013
A11: 4 | B11: 2011-03-01 | C11: 0.001841390273 | D11: -0.00371260941 | E11: 0.003749528201 | G11: -0.008112 | H11: -0.0044 | I11: -0.0098 | J11: -0.004087555535 | K11: -0.004920888868 | L11: =L10*(1+J11) -> 1059.442554 | M11: =MAX(L11,M10) -> 1063.790858 | N11: =L11/M11-1 -> -0.004087555535 | O11: 0 | P11: -0.004087555535 | Q11: 1046.54775 | R11: 0.05308142666 | S11: =S10*(1+R11) -> 1112.921974 | T11: -0.05716898219 | V11: 0.3000000119 | W11: 0 | X11: 0 | Y11: 0.3000000119 | Z11: 0.200000003 | AA11: 0.200000003 | AB11: 0 | AC11: - Optimal weights
A12: 5 | B12: 2011-04-01 | C12: 0.0009383873548 | D12: -0.008653959259 | E12: 0.002467202954 | G12: 0.030254 | H12: 0.0206 | I12: 0.0494 | J12: 0.01900492644 | L12: =L11*(1+J12) -> 1079.577182 | M12: =MAX(L12,M11) -> 1079.577182 | N12: =L12/M12-1 -> 0 | O12: 0.002967937442 | P12: 0.01603698899 | Q12: 1063.331225 | R12: 0.0004243096808 | S12: =S11*(1+R12) -> 1113.394198 | T12: 0.01858061675 | V12: 0.14286 | W12: 0.14286 | X12: 0.14286 | Y12: 0.14286 | Z12: 0.14286 | AA12: 0.14286 | AB12: 0.14286 | AC12: - Equal weights
A13: 6 | B13: 2011-05-01 | C13: 0.004911636934 | D13: 0.005743117537 | E13: 0.007048405241 | G13: -0.013748 | H13: 0.0034 | I13: 0.0216 | J13: 0.005792190149 | L13: =L12*(1+J13) -> 1085.830298 | M13: =MAX(L13,M12) -> 1085.830298 | N13: =L13/M13-1 -> 0 | O13: 0.00115843803 | P13: 0.004633752119 | Q13: 1068.258438 | R13: 0.0738964471 | S13: =S12*(1+R13) -> 1195.670073 | T13: -0.06810425695
A14: 7 | B14: 2011-06-01 | C14: 0.01159471367 | D14: 0.01278653182 | E14: 0.01358227432 | G14: -0.00061 | H14: 0.0015 | I14: -0.0004 | J14: 0.007692242102 | L14: =L13*(1+J14) -> 1094.182768 | M14: =MAX(L14,M13) -> 1094.182768 | N14: =L14/M14-1 -> 0 | O14: =IF(N14=0,0.2*(L14/M13-1),0) -> 0.00153844842 | P14: =J14-O14 -> 0.006153793681 | Q14: =Q13*(1+P14) -> 1074.83228 | R14: 0.03356017337 | S14: =S13*(1+R14) -> 1235.796968 | T14: =J14-R14 -> -0.02586793127 | V14: Performance Statistics (Before Fees) | AA14: Performance Statistics (Net of Fees) | AF14: Optimal portfolio, before fees
A15: 8 | B15: 2011-07-01 | C15: 0.0009167664684 | D15: 0.001351104584 | E15: -0.003456619568 | G15: -0.008988 | H15: -0.0048 | I15: -0.0259 | J15: -0.008176984773 | K15: -0.009010318107 | L15: =L14*(1+J15) -> 1085.235652 | M15: =MAX(L15,M14) -> 1094.182768 | N15: =L15/M15-1 -> -0.008176984773 | O15: =IF(N15=0,0.2*(L15/M14-1),0) -> 0 | P15: =J15-O15 -> -0.008176984773 | Q15: =Q14*(1+P15) -> 1066.043393 | R15: 0.03571358586 | S15: =S14*(1+R15) -> 1279.931709 | T15: =J15-R15 -> -0.04389057063 | V15: Trading period, months: | Y15: =A67 -> 60 | Z15: < Change formula | AF15: (by Sharpe Ratio)
A16: 9 | B16: 2011-08-01 | C16: -0.001591625158 | D16: -0.0198992081 | E16: 0.007133249193 | G16: 0.018374 | H16: 0.0064 | I16: -0.0468 | J16: -0.007278172156 | K16: -0.008111505489 | L16: =L15*(1+J16) -> 1077.33712 | M16: =MAX(L16,M15) -> 1094.182768 | N16: =L16/M16-1 -> -0.01539564343 | O16: =IF(N16=0,0.2*(L16/M15-1),0) -> 0 | P16: =J16-O16 -> -0.007278172156 | Q16: =Q15*(1+P16) -> 1058.284546 | R16: -0.01975271269 | S16: =S15*(1+R16) -> 1254.649586 | T16: =J16-R16 -> 0.01247454053 | V16: RF rate: | Y16: 0.01
A17: 10 | B17: 2011-09-01 | C17: 0.03076974303 | D17: 0.05150451884 | E17: 0.006430260837 | G17: -0.006044 | H17: -0.01 | I17: 0 | J17: 0.01453501096 | L17: =L16*(1+J17) -> 1092.996227 | M17: =MAX(L17,M16) -> 1094.182768 | N17: =L17/M17-1 -> -0.001084408311 | O17: =IF(N17=0,0.2*(L17/M16-1),0) -> 0 | P17: =J17-O17 -> 0.01453501096 | Q17: =Q16*(1+P17) -> 1073.666723 | R17: 0.05736399695 | S17: =S16*(1+R17) -> 1326.621301 | T17: =J17-R17 -> -0.04282898599 | V17: Growth of $1,000 (VAMI) | Y17: =INDIRECT(ADDRESS(NM+7,12)) -> 1767.906964 | AA17: Growth of $1,000 (VAMI) | AD17: =INDIRECT(ADDRESS(NM+7,17)) -> 1577.675438 | AF17: 1828.589486
A18: 11 | B18: 2011-10-01 | C18: 0.0132522434 | D18: 0.01137170941 | E18: 0.01114995219 | G18: 0.02095 | H18: 0.0193 | I18: -0.0148 | J18: 0.01224722996 | L18: =L17*(1+J18) -> 1106.382403 | M18: =MAX(L18,M17) -> 1106.382403 | N18: =L18/M18-1 -> 0 | O18: =IF(N18=0,0.2*(L18/M17-1),0) -> 0.002229908129 | P18: =J18-O18 -> 0.01001732183 | Q18: =Q17*(1+P18) -> 1084.421988 | R18: 0.01777059774 | S18: =S17*(1+R18) -> 1350.196154 | T18: =J18-R18 -> -0.005523367783 | V18: Comp. annualized ROR: | Y18: =POWER($Y$17/1000,12/NM)-1 -> 0.1207064755 | AA18: Comp. annualized ROR: | AD18: =POWER($AD$17/1000,12/NM)-1 -> 0.09547767871 | AF18: 0.1282965071
A19: 12 | B19: 2011-11-01 | C19: 0.01432745997 | D19: 0.01803011633 | E19: 0.007785517722 | G19: -0.019856 | H19: -0.0013 | I19: -0.0041 | J19: 0.002978014289 | L19: =L18*(1+J19) -> 1109.677226 | M19: =MAX(L19,M18) -> 1109.677226 | N19: =L19/M19-1 -> 0 | O19: =IF(N19=0,0.2*(L19/M18-1),0) -> 0.0005956028578 | P19: =J19-O19 -> 0.002382411431 | Q19: =Q18*(1+P19) -> 1087.005528 | R19: -0.0369742624 | S19: =S18*(1+R19) -> 1300.273648 | T19: =J19-R19 -> 0.03995227669 | V19: Annualized ROR volatility: | Y19: =STDEV(OFFSET(J8,0,0,NM,1))*SQRT(12) -> 0.04446382272 | AA19: Annualized ROR volatility: | AD19: =STDEV(OFFSET(P8,0,0,NM,1))*SQRT(12) -> 0.03851976478 | AF19: 0.03690521297
A20: 13 | B20: 2011-12-01 | C20: 0.003604379483 | D20: 0.004999594297 | E20: 0.003728173207 | G20: 0.028872 | H20: 0.0133 | I20: 0.012 | J20: 0.01330348956 | L20: =L19*(1+J20) -> 1124.439805 | M20: =MAX(L20,M19) -> 1124.439805 | N20: =L20/M20-1 -> 0 | O20: =IF(N20=0,0.2*(L20/M19-1),0) -> 0.002660697913 | P20: =J20-O20 -> 0.01064279165 | Q20: =Q19*(1+P20) -> 1098.574301 | R20: 0.02851369346 | S20: =S19*(1+R20) -> 1337.349252 | T20: =J20-R20 -> -0.0152102039 | V20: Annualized downside deviation: | Y20: =STDEV(OFFSET(K8,0,0,NM,1))*SQRT(12) -> 0.01926876205 | AA20: Annualized downside deviation: | AD20: =$Y$20 -> 0.01926876205 | AF20: 0.01303398491
A21: 14 | B21: 2012-01-01 | C21: -0.01326989941 | D21: -0.02092905901 | E21: -0.01657921076 | G21: 0.044053 | H21: 0.0191 | I21: 0.0632 | J21: 0.01511798916 | L21: =L20*(1+J21) -> 1141.439074 | M21: =MAX(L21,M20) -> 1141.439074 | N21: =L21/M21-1 -> 0 | O21: =IF(N21=0,0.2*(L21/M20-1),0) -> 0.003023597831 | P21: =J21-O21 -> 0.01209439132 | Q21: =Q20*(1+P21) -> 1111.860889 | R21: 0.05879636755 | S21: =S20*(1+R21) -> 1415.98053 | T21: =J21-R21 -> -0.0436783784 | V21: Worst drawdown: | Y21: =MIN(OFFSET(N8,0,0,NM,1)) -> -0.02045210136 | AA21: Worst drawdown: | AD21: =$Y$21 -> -0.02045210136 | AF21: -0.01972854612
A22: 15 | B22: 2012-02-01 | C22: 0.0048748767 | D22: 0.005191043019 | E22: 0.007270781323 | G22: 0.0448 | H22: 0.0121 | I22: 0.0168 | J22: 0.01821098168 | L22: 1162.2258 | M22: 1162.2258 | N22: 0 | O22: 0.003642196335 | P22: 0.01456878534 | Q22: 1128.059351 | R22: 0.01475077602 | S22: 1436.867342 | T22: 0.003460205658 | V22: Sharpe ratio: | Y22: =($Y$18-$Y$16)/$Y$19 -> 2.489810113 | AA22: Sharpe ratio: | AD22: =($AD$18-$Y$16)/$AD$19 -> 2.219060246 | AF22: 3.205414562
A23: 16 | B23: 2012-03-01 | C23: 0.003396739019 | D23: 0.008446701802 | E23: 0.01669565216 | G23: 0.025765 | H23: 0.0371 | I23: 0.0739 | J23: 0.03306743076 | L23: 1200.657621 | M23: 1200.657621 | N23: 0 | O23: 0.006613486152 | P23: 0.02645394461 | Q23: 1157.900971 | R23: -0.08196818013 | S23: 1319.08994 | T23: 0.1150356109 | V23: Sortino Ratio: | Y23: =($Y$18-$Y$16)/$Y$20 -> 5.745385989 | AA23: Sortino Ratio: | AD23: =($AD$18-$Y$16)/$AD$20 -> 4.436075265 | AF23: 9.076004602
A24: 17 | B24: 2012-04-01 | C24: 0.006830822211 | D24: 0.007878142409 | E24: 0.005130182952 | G24: -0.032985 | H24: 0.005 | I24: 0.0047 | J24: -0.0006893083198 | K24: -0.001522641653 | L24: 1199.829998 | M24: 1200.657621 | N24: -0.0006893083198 | O24: 0 | P24: -0.0006893083198 | Q24: 1157.10282 | R24: -0.05390991454 | S24: 1247.977914 | T24: 0.05322060622 | V24: Calmar Ratio: | Y24: =-$Y$18/$Y$21 -> 5.901910683 | AA24: Calmar Ratio: | AD24: =-$AD$18/$AD$21 -> 4.668355444 | AF24: 6.5030898
A25: 18 | B25: 2012-05-01 | C25: -0.001687437529 | D25: 0.001665499411 | E25: 0.006578585133 | G25: -0.027519 | H25: -0.01 | I25: -0.0679 | J25: -0.01977642509 | K25: -0.02060975842 | L25: 1176.10165 | M25: 1200.657621 | N25: -0.02045210136 | O25: 0 | P25: -0.01977642509 | Q25: 1134.219463 | R25: 0.06879923934 | S25: 1333.837846 | T25: -0.08857566443 | V25: Max. monthly ROR: | Y25: =MAX(OFFSET(J8,0,0,NM,1)) -> 0.03428072132 | AA25: Max. monthly ROR: | AD25: =MAX(OFFSET(P8,0,0,NM,1)) -> 0.02887279918 | AF25: 0.0358782396
A26: 19 | B26: 2012-06-01 | C26: 0.001052118489 | D26: -0.001696062973 | E26: -0.005615726113 | G26: 0.054894 | H26: 0.017 | I26: 0.0502 | J26: 0.02317149925 | L26: 1203.353688 | M26: 1203.353688 | N26: 0 | O26: 0.0004490984091 | P26: 0.02272240084 | Q26: 1159.991652 | R26: -0.04744959558 | S26: 1270.547779 | T26: 0.07062109484 | V26: Min. monthly ROR: | Y26: =MIN(OFFSET(J8,0,0,NM,1)) -> -0.01977642509 | AA26: Min. monthly ROR: | AD26: =MIN(OFFSET(P8,0,0,NM,1)) -> -0.01977642509 | AF26: -0.01373089683
A27: 20 | B27: 2012-07-01 | C27: -0.01986542717 | D27: -0.0306965597 | E27: -0.02258663066 | G27: 0.027664 | H27: 0.0203 | I27: 0.0271 | J27: 0.0003831531111 | K27: -0.0004501802222 | L27: 1203.814757 | M27: 1203.814757 | N27: 0 | O27: 7.663062222e-05 | P27: 0.0003065224889 | Q27: 1160.347216 | R27: 0.09236457897 | S27: 1387.90139 | T27: -0.09198142585 | V27: Annual. Alpha, rel. to SPY: | Y27: =12*INTERCEPT(OFFSET(J8,0,0,NM,1),OFFSET(R8,0,0,NM,1)) -> 0.11693091 | AA27: Annual. Alpha, rel. to SPY: | AD27: =12*INTERCEPT(OFFSET(P8,0,0,NM,1),OFFSET(R8,0,0,NM,1)) -> 0.09337512984 | AF27: 0.1262420845
A28: 21 | B28: 2012-08-01 | C28: 0.002240289235 | D28: 0.0003083487973 | E28: 0.02444494702 | G28: 0.028111 | H28: 0.0113 | I28: 0.0407 | J28: 0.02142520119 | L28: 1229.60673 | M28: 1229.60673 | N28: 0 | O28: 0.004285040239 | P28: 0.01714016096 | Q28: 1180.235754 | R28: 0.03229690117 | S28: 1432.726304 | T28: -0.01087169998 | V28: Beta, rel. to SPY: | Y28: =SLOPE(OFFSET(J8,0,0,NM,1),OFFSET(R8,0,0,NM,1)) -> -0.009745346833 | AA28: Beta, rel. to SPY: | AD28: =SLOPE(OFFSET(P8,0,0,NM,1),OFFSET(R8,0,0,NM,1)) -> -0.007395147582 | AF28: -0.02832737099
A29: 22 | B29: 2012-09-01 | C29: 0.009616958909 | D29: 0.00873 | E29: 0.0139883738 | G29: 0.064534 | H29: 0.0168 | I29: 0.0577 | J29: 0.03428072132 | L29: 1271.758536 | M29: 1271.758536 | N29: 0 | O29: 0.006856144263 | P29: 0.02742457705 | Q29: 1212.60322 | R29: -0.002290282778 | S29: 1429.444956 | T29: 0.03657100409 | V29: Correlation, rel. to SPY: | Y29: =CORREL(OFFSET(J8,0,0,NM,1),OFFSET(R8,0,0,NM,1)) -> -0.03427935854 | AA29: Correlation, rel. to SPY: | AD29: =CORREL(OFFSET(P8,0,0,NM,1),OFFSET(R8,0,0,NM,1)) -> -0.03002654778 | AF29: -0.1200496059
A30: 23 | B30: 2012-10-01 | C30: 0.004769013729 | D30: 0.00746 | E30: 0.001404050039 | G30: 0.00672 | H30: 0.0048 | I30: -0.0074 | J30: 0.003551322876 | L30: 1276.274961 | M30: 1276.274961 | N30: 0 | O30: 0.0007102645752 | P30: 0.002841058301 | Q30: 1216.048296 | R30: 0.065300072 | S30: 1522.787814 | T30: -0.06174874912 | V30: Kurtosis of monthly ROR: | Y30: =KURT(OFFSET(J8,0,0,NM,1)) -> -0.4693305996 | AA30: Kurtosis of monthly ROR: | AD30: =KURT(OFFSET(P8,0,0,NM,1)) -> -0.3145134689 | AF30: -0.5167090495
A31: 24 | B31: 2012-11-01 | C31: 0.009035997093 | D31: 0.00563 | E31: 0.004120700993 | G31: 0.017263 | H31: 0.0248 | I31: 0.0471 | J31: 0.0215942576 | L31: 1303.835171 | M31: 1303.835171 | N31: 0 | O31: 0.004318851521 | P31: 0.01727540608 | Q31: 1237.056025 | R31: 0.02264559015 | S31: 1557.272243 | T31: -0.001051332548 | V31: Skewness of monthly ROR: | Y31: =SKEW(OFFSET(J8,0,0,NM,1)) -> 0.04050526827 | AA31: Skewness of monthly ROR: | AD31: =SKEW(OFFSET(P8,0,0,NM,1)) -> -0.1162932113 | AF31: 0.2053178085
A32: 25 | B32: 2012-12-01 | C32: -0.003765355796 | D32: -0.00229 | E32: -0.0006554728607 | G32: 0.014333 | H32: 0.0281 | I32: -0.0178 | J32: 0.003585151156 | L32: 1308.509618 | M32: 1308.509618 | N32: 0 | O32: 0.0007170302311 | P32: 0.002868120924 | Q32: 1240.604051 | R32: 0.03195658259 | S32: 1607.037342 | T32: -0.02837143143 | V32: # Profitable months | Y32: =COUNTIF(OFFSET(J8,0,0,NM,1),">=0") -> 46 | AA32: # Winning months | AD32: =COUNTIF(OFFSET(P8,0,0,NM,1),">=0") -> 46 | AF32: 49
A33: 26 | B33: 2013-01-01 | C33: 0.00056 | D33: 0.00228 | E33: -0.0021 | G33: 0.08041 | H33: 0.0234 | I33: 0.0502 | J33: 0.03095619 | L33: 1349.01609 | M33: 1349.01609 | N33: 0 | O33: 0.006191238 | P33: 0.024764952 | Q33: 1271.327551 | R33: -0.001047301879 | S33: 1605.354289 | T33: 0.03200349188 | V33: # Losing months | Y33: =COUNTIF(OFFSET(J8,0,0,NM,1),"<0") -> 14 | AA33: # Losing months | AD33: =COUNTIF(OFFSET(P8,0,0,NM,1),"<0") -> 14 | AF33: 11
A34: 27 | B34: 2013-02-01 | C34: 0.01557 | D34: 0.02302 | E34: 0.01932 | F34: 0.00767 | G34: -0.007211 | H34: 0.0055 | I34: 0.006 | J34: =($V$10*C34+$W$10*D34+$X$10*E34+$Y$10*F34+$Z$10*G34+$AA$10*H34+$AB$10*I34)*$AC$10 -> 0.01197778241 | L34: 1365.174311 | M34: 1365.174311 | N34: 0 | O34: 0.002395556482 | P34: 0.009582225926 | Q34: 1283.509698 | R34: 0.02849535763 | S34: 1651.099433 | T34: -0.01651757522 | V34: % Profitable months: | Y34: =$Y$32/($Y$32+$Y$33) -> 0.7666666667 | AA34: % Profitable months: | AD34: =$AD$32/($AD$32+$AD$33) -> 0.7666666667 | AF34: 0.8166666667
A35: 28 | B35: 2013-03-01 | C35: -0.00168 | D35: -0.00563 | E35: 0.00126 | F35: 0.00127 | G35: 0.014131 | H35: 0.0153 | I35: 0.0299 | J35: 0.009351787032 | L35: 1377.941131 | M35: 1377.941131 | N35: 0 | O35: 0.001870357406 | P35: 0.007481429626 | Q35: 1293.112186 | R35: -0.01350092768 | S35: 1628.808059 | T35: 0.02285271472 | V35: Average positive monthly ROR: | Y35: =SUMIF(OFFSET(J8,0,0,NM,1),">0")/$Y$32 -> 0.01470791595 | AA35: Average positive monthly ROR: | AD35: =SUMIF(OFFSET(P8,0,0,NM,1),">0")/$AD$32 -> 0.01218593891 | AF35: 0.01336921143
A36: 29 | B36: 2013-04-01 | C36: 0.00869 | D36: 0.01443 | E36: 0.00474 | F36: 0.0063 | G36: 0.014403 | H36: 0.0333 | I36: 0.02 | J36: 0.01746257782 | L36: 1402.003535 | M36: 1402.003535 | N36: 0 | O36: 0.003492515563 | P36: 0.01397006225 | Q36: 1311.177044 | R36: -0.01825750818 | S36: 1599.070083 | T36: 0.03572008599 | V36: Average negative monthly ROR: | Y36: =SUMIF(OFFSET(J8,0,0,NM,1),"<0")/$Y$33 -> -0.007088614423 | AA36: Average negative monthly ROR: | AD36: =SUMIF(OFFSET(P8,0,0,NM,1),"<0")/$AD$33 -> -0.007088614423 | AF36: -0.00410822165
A37: 30 | B37: 2013-05-13 | C37: -0.00582 | D37: -0.01347 | E37: -0.00842 | F37: 0.0054 | G37: 0.002789 | H37: -0.0008 | I37: -0.0023 | J37: -0.003877963272 | K37: -0.004711296605 | L37: 1396.566617 | M37: 1402.003535 | N37: -0.003877963272 | O37: 0 | P37: -0.003877963272 | Q37: 1306.092347 | R37: -0.02147443664 | S37: 1564.730954 | T37: 0.01759647336 | V37: Avg. pos. / avg. neg. mon. ROR: | Y37: =-$Y$35/$Y$36 -> 2.074864715 | AA37: Avg. pos. / avg. neg. mon. ROR: | AD37: =-$AD$35/$AD$36 -> 1.719086154 | AF37: 3.254257576
A38: 31 | B38: 2013-06-24 | C38: 0.00634 | D38: 0.00187 | E38: -0.00587 | F38: 0.00617 | G38: -0.011533 | H38: -0.0106 | I38: -0.0172 | J38: -0.005284048536 | K38: -0.006117381869 | L38: 1389.187091 | M38: 1402.003535 | N38: -0.009141520462 | O38: 0 | P38: -0.005284048536 | Q38: 1299.190892 | R38: -0.0567910979 | S38: 1475.868165 | T38: 0.05150704937 | V38: Sum positive RORs: | Y38: =SUMIF(OFFSET(J8,0,0,NM,1),">0") -> 0.6765641335 | AA38: Sum positive RORs: | AD38: =SUMIF(OFFSET(P8,0,0,NM,1),">0") -> 0.5605531897 | AF38: 0.65509136
A39: 32 | B39: 2013-07-13 | C39: 0.00832 | D39: 0.01344 | E39: 0.00865 | F39: 0.01373 | G39: 0.039958 | H39: 0.025 | I39: 0.0563 | J39: 0.02835450994 | L39: 1428.57681 | M39: 1428.57681 | N39: 0 | O39: 0.003790757228 | P39: 0.02456375271 | Q39: 1331.103896 | R39: -0.07176201298 | S39: 1369.956894 | T39: 0.1001165229 | V39: Sum negative RORs: | Y39: =SUMIF(OFFSET(J8,0,0,NM,1),"<0") -> -0.09924060192 | AA39: Sum negative RORs: | AD39: =SUMIF(OFFSET(P8,0,0,NM,1),"<0") -> -0.09924060192 | AF39: -0.04519043815
A40: 33 | B40: 2013-08-01 | C40: 0.01202 | D40: 0.01095 | E40: -0.00325 | F40: 0.00046 | G40: 0.020867 | H40: -0.0121 | I40: -0.0237 | J40: 0.000899503704 | K40: =IF(J40<$Y$16/12,J40-$Y$16/12,"") ->  | L40: 1429.86182 | M40: 1429.86182 | N40: 0 | O40: 0.0001799007408 | P40: 0.0007196029632 | Q40: 1332.061762 | R40: 0.1077230383 | S40: 1517.532813 | T40: -0.1068235346 | V40: Profit-to-loss ratio: | Y40: =-SUMIF(OFFSET(J8,0,0,NM,1),">0")/SUMIF(OFFSET(J8,0,0,NM,1),"<0") -> 6.817412636 | AA40: Profit-to-loss ratio: | AD40: =-SUMIF(OFFSET(P8,0,0,NM,1),">0")/SUMIF(OFFSET(P8,0,0,NM,1),"<0") -> 5.648425935 | AF40: 14.49623829
A41: 34 | B41: 2013-09-08 | C41: -0.0005 | D41: 0.00719 | E41: 0.03506 | F41: -0.00735 | G41: 0.02568 | H41: 0.0099 | I41: 0.0291 | J41: 0.01698548256 | L41: 1454.148713 | M41: 1454.148713 | N41: 0 | O41: 0.003397096512 | P41: 0.01358838605 | Q41: 1350.162331 | R41: -0.005058645177 | S41: 1509.856153 | T41: 0.02204412774 | V41: Tracking error, rel. to SPY: | Y41: =STDEV(OFFSET(T8,0,0,NM,1))*SQRT(12) -> 0.1640590651 | AA41: Tracking error, rel. to SPY: | AD41: N/A | AF41: 0.1649528148
A42: 35 | B42: 2013-10-01 | C42: 0.01276 | D42: 0.01732 | E42: 0.00492 | F42: 0.00724 | G42: 0.032459 | H42: 0.0109 | I42: 0.028 | J42: 0.01947450377 | L42: 1482.467538 | M42: 1482.467538 | N42: 0 | O42: 0.003894900754 | P42: 0.01557960301 | Q42: 1371.197324 | R42: 0.008532751652 | S42: 1522.739381 | T42: 0.01094175212 | V42: Information Ratio, rel. to SPY: | Y42: =12*AVERAGE(OFFSET(T8,0,0,NM,1))/$Y$41 -> -0.2132583168 | AA42: Information Ratio, rel. to SPY: | AD42: N/A | AF42: -0.1726037962
A43: 36 | B43: 2013-11-01 | C43: -0.00603 | D43: -0.00909 | E43: -0.00818 | F43: -0.00421 | G43: 0.022035 | H43: 0.0074 | I43: 0.0194 | J43: 0.0036557874 | L43: 1487.887124 | M43: 1487.887124 | N43: 0 | O43: 0.00073115748 | P43: 0.00292462992 | Q43: 1375.207569 | R43: 0.04357506361 | S43: 1589.092846 | T43: -0.03991927621 | V43: R-Square, rel to SPY: | Y43: =RSQ(OFFSET(J8,0,0,NM,1),OFFSET(R8,0,0,NM,1)) -> 0.001175074422 | AA43: R-Square, rel to SPY: | AD43: =RSQ(OFFSET(P8,0,0,NM,1),OFFSET(R8,0,0,NM,1)) -> 0.0009015935715 | AF43: 0.01441190788
A44: 37 | B44: 2013-12-01 | C44: -0.00765 | D44: -0.00452 | E44: -0.01119 | F44: -0.00105 | G44: 0.045706 | H44: 0.0059 | I44: 0.0133 | J44: 0.006942310272 | L44: 1498.216498 | M44: 1498.216498 | N44: 0 | O44: 0.001388462054 | P44: 0.005553848218 | Q44: 1382.845263 | R44: 0.04059737885 | S44: 1653.605851 | T44: -0.03365506858 | V44: SPY ROR, annualized: | Y44: =POWER(INDIRECT(ADDRESS(NM+7,19))/1000,12/NM)-1 -> 0.1475870103 | AA44: SPY ROR, annualized: | AD44: =$Y$44 -> 0.1475870103 | AF44: 0.1475870103
A45: 38 | B45: 2014-01-01 | C45: 0.0172 | D45: 0.01888 | E45: 0.00538 | F45: 0.0105 | G45: -0.02726 | H45: -0.0124 | I45: -0.0319 | J45: -0.0033600672 | K45: -0.004193400533 | L45: 1493.18239 | M45: 1498.216498 | N45: -0.0033600672 | O45: 0 | P45: -0.0033600672 | Q45: 1378.19881 | R45: 0.03133237655 | S45: 1705.417252 | T45: -0.03469244375 | V45: Active Premium, rel. SPY: | Y45: =$Y$18-$Y$44 -> -0.02688053477 | AA45: Active Premium, rel. SPY: | AD45: =$AD$18-$AD$44 -> -0.05210933156 | AF45: -0.01929050321
A46: 39 | B46: 2014-02-01 | C46: 0.00963 | D46: 0.01033 | E46: 0.01163 | F46: 0.01099 | G46: 0.045269 | H46: 0.0116 | I46: 0.025 | J46: 0.02133454097 | L46: =L45*(1+J46) -> 1525.038751 | M46: =MAX(L46,M45) -> 1525.038751 | N46: =L46/M46-1 -> 0 | O46: =IF(N46=0,0.2*(L46/M45-1),0) -> 0.003580557655 | P46: =J46-O46 -> 0.01775398331 | Q46: =Q45*(1+P46) -> 1402.667329 | R46: 0.04311703757 | S46: =S45*(1+R46) -> 1778.949792 | T46: =J46-R46 -> -0.0217824966 | V46: Treynor Ratio: | Y46: =($Y$18-$Y$16)/ABS($Y$28) -> 11.35993181 | AA46: Treynor Ratio: | AD46: =($AD$18-$Y$16)/ABS($AD$28) -> 11.55861702 | AF46: 4.176049628
A47: 40 | B47: 2014-03-01 | C47: 0.00177 | D47: -0.00054 | E47: 0.01231 | F47: 0.00092 | G47: 0.01511 | H47: 0.0101 | I47: 0.0116 | J47: 0.00878931864 | L47: 1538.442802 | M47: 1538.442802 | N47: 0 | O47: 0.001757863728 | P47: 0.007031454912 | Q47: 1412.530121 | R47: 0.006932157358 | S47: 1791.281752 | T47: 0.001857161282 | V47: Jensen Alpha, annualized: | Y47: =$Y$18-($Y$16+$Y$28*($Y$44-$Y$16)) -> 0.1120473086 | AA47: Jensen Alpha, annualized: | AD47: =$AD$18-($Y$16+$AD$28*($AD$44-$Y$16)) -> 0.08649515495 | AF47: 0.1221939853
A48: 41 | B48: 2014-04-01 | C48: 0.00432 | D48: 0.00611 | E48: 0.00243 | F48: 0.00823 | G48: 0.01171 | H48: -0.0001 | I48: 0.0096 | J48: 0.0072515736 | L48: 1549.598933 | M48: 1549.598933 | N48: 0 | O48: 0.00145031472 | P48: 0.00580125888 | Q48: 1420.724574 | R48: 0.006200796864 | S48: 1802.389126 | T48: 0.001050776736 | V48: Worst drawdown: | Y48: =MIN(OFFSET(N8,0,0,NM,1)) -> -0.02045210136 | AA48: Worst drawdown: | AD48: =$Y$48 -> -0.02045210136 | AF48: -0.01972854612
A49: 42 | B49: 2014-05-01 | C49: 0.00182 | D49: 0.00122 | E49: -0.0034 | F49: 0.00219 | G49: 0.02623 | H49: 0.0136 | I49: 0.0252 | J49: 0.01146194352 | L49: 1567.360349 | M49: 1567.360349 | N49: 0 | O49: 0.002292388704 | P49: 0.009169554816 | Q49: 1433.751986 | R49: 0.02103028212 | S49: 1840.293878 | T49: -0.0095683386
A50: 43 | B50: 2014-06-01 | C50: -0.00999 | D50: -0.00737 | E50: -0.00597 | F50: -0.0047 | G50: 0.0456 | H50: 0.0052 | I50: 0.0203 | J50: 0.00738357624 | L50: 1578.933073 | M50: 1578.933073 | N50: 0 | O50: 0.001476715248 | P50: 0.005906860992 | Q50: 1442.22096 | R50: 0.01905831345 | S50: 1875.366775 | T50: -0.01167473721
A51: 44 | B51: 2014-07-01 | C51: -0.00065 | D51: 7e-05 | E51: -0.00116 | F51: -0.00039 | G51: 0.01169 | H51: -0.0112 | I51: -0.0106 | J51: -0.00209832768 | K51: -0.002931661013 | L51: =L50*(1+J51) -> 1575.619954 | M51: =MAX(L51,M50) -> 1578.933073 | N51: =L51/M51-1 -> -0.00209832768 | O51: =IF(N51=0,0.2*(L51/M50-1),0) -> 0 | P51: =J51-O51 -> -0.00209832768 | Q51: =Q50*(1+P51) -> 1439.194707 | R51: -0.01507986308 | S51: =S50*(1+R51) -> 1847.086501 | T51: =J51-R51 -> 0.0129815354
A52: 45 | B52: 2014-08-01 | C52: -0.00342 | D52: -0.00443 | E52: 0.00594 | F52: -0.00305 | G52: 0.014 | H52: 0.0093 | I52: 0.018 | J52: 0.00622983888 | L52: 1585.435813 | M52: 1585.435813 | N52: 0 | O52: 0.0008236877913 | P52: 0.005406151089 | Q52: 1446.975211 | R52: 0.03765532173 | S52: 1916.639137 | T52: -0.03142548285
A53: 46 | B53: 2014-09-01 | C53: -0.00507 | D53: -0.00685 | E53: -0.0025 | F53: -0.00709 | G53: 0.00319 | H53: -0.0068 | I53: -0.0153 | J53: -0.00692928144 | K53: -0.007762614773 | L53: 1574.449882 | M53: 1585.435813 | N53: -0.00692928144 | O53: 0 | P53: -0.00692928144 | Q53: 1436.948713 | R53: -0.01551385915 | S53: 1886.904668 | T53: 0.008584577707
A54: 47 | B54: 2014-10-01 | C54: 0.01741 | D54: 0.02369 | E54: 0.01082 | F54: 0.00985 | G54: 0.02782 | H54: 0.0271 | I54: -0.0004 | J54: 0.01993582728 | L54: 1605.837843 | M54: 1605.837843 | N54: 0 | O54: 0.002573680976 | P54: 0.0173621463 | Q54: 1461.897227 | R54: 0.02320145618 | S54: 1930.683604 | T54: -0.003265628895
A55: 48 | B55: 2014-11-01 | C55: 0.00505 | D55: 0.01055 | E55: 0.00385 | F55: 0.00618 | G55: -0.01391 | H55: 0.005 | I55: 0.016 | J55: 0.00560925504 | L55: 1614.845397 | M55: 1614.845397 | N55: 0 | O55: 0.001121851008 | P55: 0.004487404032 | Q55: 1468.45735 | R55: 0.0245335844 | S55: 1978.050193 | T55: -0.01892432936
A56: 49 | B56: 2014-12-01 | C56: -0.01122 | D56: -0.01949 | E56: -0.01599 | F56: -0.01031 | G56: 0.01387 | H56: 0.0028 | I56: -0.0365 | J56: -0.01317283488 | K56: -0.01400616821 | L56: 1593.573305 | M56: 1614.845397 | N56: -0.01317283488 | O56: 0 | P56: -0.01317283488 | Q56: 1449.113604 | R56: -0.004188512063 | S56: 1969.765106 | T56: -0.008984322817
A57: 50 | B57: 2015-01-01 | C57: 0.01206 | D57: 0.01399 | E57: -0.01284 | F57: 0.04321 | G57: 0.01774 | H57: -0.0048 | I57: -0.0408 | J57: 0.00489609792 | L57: 1601.375596 | M57: 1614.845397 | N57: -0.008341232449 | O57: 0 | P57: 0.00489609792 | Q57: 1456.208606 | R57: -0.03104084705 | S57: 1908.621928 | T57: 0.03593694497
A58: 51 | B58: 2015-02-01 | C58: 0.01457 | D58: 0.03841 | E58: 0.02659 | F58: 0.02394 | G58: -0.00316 | H58: 0.0209 | I58: 0.0619 | J58: 0.0313977708 | L58: 1651.65522 | M58: 1651.65522 | N58: 0 | O58: 0.004558928449 | P58: 0.02683884235 | Q58: 1495.291559 | R58: 0.05489250573 | S58: 2013.390969 | T58: -0.02349473493
A59: 52 | B59: 2015-03-01 | C59: 0.01327 | D59: 0.00945 | E59: 0.00107 | F59: 0.01 | G59: 0.05409 | H59: 0.0046 | I59: 0.0156 | J59: 0.01852837056 | L59: 1682.2577 | M59: 1682.2577 | N59: 0 | O59: 0.003705674112 | P59: 0.01482269645 | Q59: 1517.455812 | R59: -0.01739605607 | S59: 1978.365906 | T59: 0.03592442663
A60: 53 | B60: 2015-04-01 | C60: 0.00688 | D60: 0.00632 | E60: 0.00668 | F60: 0.00426 | G60: 0.0065 | H60: 0.0134 | I60: 0.01736 | J60: 0.0105259248 | L60: 1699.965018 | M60: 1699.965018 | N60: 0 | O60: 0.00210518496 | P60: 0.00842073984 | Q60: 1530.233913 | R60: 0.00852076271 | S60: 1995.223093 | T60: 0.00200516209
A61: 54 | B61: 2015-05-01 | C61: -0.00847 | D61: -0.00545 | E61: -0.00312 | F61: -0.00389 | G61: 0.02484 | H61: 0.0074 | I61: 0.01469 | J61: 0.004457232 | L61: 1707.542156 | M61: 1707.542156 | N61: 0 | O61: 0.0008914464 | P61: 0.0035657856 | Q61: 1535.690399 | R61: 0.01049143855 | S61: 2016.155853 | T61: -0.006034206545
A62: 55 | B62: 2015-06-01 | C62: -0.01186 | D62: -0.00335 | E62: -0.01342 | F62: 0.0261 | G62: -0.0116 | H62: 0.0008 | I62: -0.01315 | J62: -0.00453951936 | K62: -0.005372852693 | L62: 1699.790736 | M62: 1707.542156 | N62: -0.00453951936 | O62: 0 | P62: -0.00453951936 | Q62: 1528.719103 | R62: -0.02101177286 | S62: 1973.792844 | T62: 0.0164722535
A63: 56 | B63: 2015-07-01 | C63: 0.02308 | D63: 0.02053 | E63: 0.00868 | F63: 0.01408 | G63: -0.01036 | H63: 0.0213 | I63: 0.02483 | J63: 0.01751006448 | L63: 1729.554181 | M63: 1729.554181 | N63: 0 | O63: 0.002578211569 | P63: 0.01493185291 | Q63: 1551.545711 | R63: 0.01974203993 | S63: 2012.759542 | T63: -0.00223197545
A64: 57 | B64: 2015-08-01 | C64: 0.00483 | D64: 0.00637 | E64: -0.03215 | F64: -0.0049 | G64: 0.0048 | H64: -0.024 | I64: -0.04412 | J64: -0.01528659144 | K64: -0.01611992477 | L64: 1703.115193 | M64: 1729.554181 | N64: -0.01528659144 | O64: 0 | P64: -0.01528659144 | Q64: 1527.827866 | R64: -0.06258080462 | S64: 1886.79943 | T64: 0.04729421318
A65: 58 | B65: 2015-09-01 | C65: 0.01708 | D65: 0.02132 | E65: -0.00108 | F65: 0.03967 | G65: 0.01184 | H65: -0.0002 | I65: -0.0398 | J65: 0.00837102456 | L65: 1717.372012 | M65: 1729.554181 | N65: -0.007043531312 | O65: 0 | P65: 0.00837102456 | Q65: 1540.617351 | R65: -0.02644281962 | S65: 1836.907133 | T65: 0.03481384418
A66: 59 | B66: 2015-10-01 | C66: -0.01758 | D66: 0.00014 | E66: 0.0668 | F66: -0.00233 | G66: 0.049603 | H66: 0.0378 | I66: 0.06547 | J66: 0.0342697711 | L66: 1776.225958 | M66: 1776.225958 | N66: 0 | O66: 0.005396971916 | P66: 0.02887279918 | Q66: 1585.099286 | R66: 0.08298307839 | S66: 1989.339342 | T66: -0.04871330729
A67: 60 | B67: 2015-11-01 | C67: 0.00785 | D67: -0.01384 | E67: -0.00015 | F67: 0.00169 | G67: -0.01932 | H67: -0.0036 | I67: 5e-05 | J67: -0.00468352224 | K67: -0.005516855573 | L67: 1767.906964 | M67: 1776.225958 | N67: -0.00468352224 | O67: 0 | P67: -0.00468352224 | Q67: 1577.675438 | R67: 0.0005049630656 | S67: 1990.343884 | T67: -0.005188485306
K68: -0.0008333333333
X106: FXQ9 | Y106: FXIA | Z106: FXBQ | AA106: FXC | AB106: V1 | AC106: V2 | AD106: V4
V107: Mean annual returns: | X107: =12*AVERAGE(OFFSET(C8,0,0,NM,1)) -> 0.04714734144 | Y107: 0.0569989218 | Z107: 0.04419256139 | AA107: 0.07439294118 | AB107: 0.193233 | AC107: 0.10222 | AD107: 0.136946
V108: Variance/covariance: | X108: =12*VAR(OFFSET(C8,0,0,NM,1)) -> 0.001148052065 | Y108: =12*COVAR(OFFSET(C8,0,0,NM,1),OFFSET(D8,0,0,NM,1)) -> 0.001353458293 | Z108: =12*COVAR(OFFSET(C8,0,0,NM,1),OFFSET(E8,0,0,NM,1)) -> 0.0003302373457 | AA108: =12*COVAR(OFFSET(C8,0,0,NM,1),OFFSET(F8,0,0,NM,1)) -> 0.0007579151689 | AB108: =12*COVAR(OFFSET(C8,0,0,NM,1),OFFSET(G8,0,0,NM,1)) -> -0.000648234301 | AC108: =12*COVAR(OFFSET(C8,0,0,NM,1),OFFSET(H8,0,0,NM,1)) -> -0.0002230029491 | AD108: =12*COVAR(OFFSET(C8,0,0,NM,1),OFFSET(I8,0,0,NM,1)) -> -0.0003866638897
Y109: =12*VAR(OFFSET(D8,0,0,NM,1)) -> 0.002255578197 | Z109: =12*COVAR(OFFSET(D8,0,0,NM,1),OFFSET(E8,0,0,NM,1)) -> 0.0008687448741 | AA109: =12*COVAR(OFFSET(D8,0,0,NM,1),OFFSET(F8,0,0,NM,1)) -> 0.001058175002 | AB109: =12*COVAR(OFFSET(D8,0,0,NM,1),OFFSET(G8,0,0,NM,1)) -> -0.0006658149407 | AC109: =12*COVAR(OFFSET(D8,0,0,NM,1),OFFSET(H8,0,0,NM,1)) -> -5.299306996e-05 | AD109: =12*COVAR(OFFSET(D8,0,0,NM,1),OFFSET(I8,0,0,NM,1)) -> 0.0002132560574
Z110: =12*VAR(OFFSET(E8,0,0,NM,1)) -> 0.00235077589 | AA110: =12*COVAR(OFFSET(E8,0,0,NM,1),OFFSET(F8,0,0,NM,1)) -> -8.167104706e-05 | AB110: =12*COVAR(OFFSET(E8,0,0,NM,1),OFFSET(G8,0,0,NM,1)) -> 0.0003136043006 | AC110: =12*COVAR(OFFSET(E8,0,0,NM,1),OFFSET(H8,0,0,NM,1)) -> 0.0009036634433 | AD110: =12*COVAR(OFFSET(E8,0,0,NM,1),OFFSET(I8,0,0,NM,1)) -> 0.00201224655
AA111: =12*VAR(OFFSET(F8,0,0,NM,1)) -> 0.001767758832 | AB111: =12*COVAR(OFFSET(F8,0,0,NM,1),OFFSET(G8,0,0,NM,1)) -> -0.0005194035982 | AC111: =12*COVAR(OFFSET(F8,0,0,NM,1),OFFSET(H8,0,0,NM,1)) -> 5.915468512e-05 | AD111: =12*COVAR(OFFSET(F8,0,0,NM,1),OFFSET(I8,0,0,NM,1)) -> -0.0006752652581
AB112: =12*VAR(OFFSET(G8,0,0,NM,1)) -> 0.007068277029 | AC112: =12*COVAR(OFFSET(G8,0,0,NM,1),OFFSET(H8,0,0,NM,1)) -> 0.001899604675 | AD112: =12*COVAR(OFFSET(G8,0,0,NM,1),OFFSET(I8,0,0,NM,1)) -> 0.00499997944
AC113: =12*VAR(OFFSET(H8,0,0,NM,1)) -> 0.002022128102 | AD113: =12*COVAR(OFFSET(H8,0,0,NM,1),OFFSET(I8,0,0,NM,1)) -> 0.003548809323
AD114: =12*VAR(OFFSET(I8,0,0,NM,1)) -> 0.01203072448

Sheet Sharpe Ratio (monthly)
B1: Modern Portfolio Theory (MPT) | AD1: Ngran = | AE1: 10 | AG1: Ncomb= | AH1: =SUM(AL4:AL25003) -> 8008.000045 | AP1: Max. Sharpe
B2: Sharpe Ratio Optimization | E2: Mean returns and variances are automatically imported from the MultiStrategy-Monthly worksheet | AA2: Frontier | AP2: =MAX(AP4:AP8011) -> 3.11429494 | AQ2: < Change Ncomb if Ngran is changed
S3: S^-1 - Inverse of the variance/covariance matrix | AA3: mu | AB3: SD | AD3: Comb. | AE3: p1 | AF3: p2 | AG3: p3 | AH3: p4 | AI3: p5 | AJ3: p6 | AK3: p6 | AL3: Sum | AN3: mu | AO3: SD | AP3: Sharpe ratio
B4: Mean Monthly Returns | E4: Variance - Covariance Matrix | M4: Standard Deviations | P4: Correlations | S4: =MINVERSE(E5:K11) -> 3323.441255 | T4: -1921.3859 | U4: 128.3612766 | V4: -248.678608 | W4: 22.2868831 | X4: 158.2698781 | Y4: 49.49658429 | AA4: 0 | AB4: =SQRT(($S$14*AA4*AA4-2*$T$14*AA4+$U$14)/$V$14) -> 0.04325766492 | AD4: 1 | AE4: =Pcomb7($AE$1) -> 0 | AF4: 0 | AG4: 0 | AH4: 0 | AI4: 0 | AJ4: 0 | AK4: 1 | AL4: =SUM(AE4:AK4) -> 1 | AN4: =AE4*$C$5+AF4*$C$6+AG4*$C$7+AH4*$C$8+AI4*$C$9+AJ4*$C$10+AK4*$C$11 -> 0.136946 | AO4: =SDP(7,$E$5:$K$11,AE4:AK4) -> 0.109684661 | AP4: =(AN4-RFR)/AO4 -> 1.157372406 | AQ4: =IF(AP4>=0.9999*$AP$2,"Max. Sharpe","") -> 
B5: 1.) FXQ | C5: ='MultiStrategy-Monthly'!X107 -> 0.04714734144 | E5: ='MultiStrategy-Monthly'!X108 -> 0.001148052065 | F5: ='MultiStrategy-Monthly'!Y108 -> 0.001353458293 | G5: ='MultiStrategy-Monthly'!Z108 -> 0.0003302373457 | H5: ='MultiStrategy-Monthly'!AA108 -> 0.0007579151689 | I5: ='MultiStrategy-Monthly'!AB108 -> -0.000648234301 | J5: ='MultiStrategy-Monthly'!AC108 -> -0.0002230029491 | K5: ='MultiStrategy-Monthly'!AD108 -> -0.0003866638897 | M5: SD(R1) | N5: =SQRT(E5) -> 0.03388291701 | P5: Corr(1,2) | Q5: =F5/(N5*N6) -> 0.8410758082 | S5: -1921.3859 | T5: 2039.640728 | U5: -501.4839544 | V5: -477.9486512 | W5: 19.25759472 | X5: 305.4117059 | Y5: -138.9496151 | AA5: 0.01 | AB5: 0.03863631925 | AD5: 2 | AE5: 0 | AF5: 0 | AG5: 0 | AH5: 0 | AI5: 0 | AJ5: 0.1000000015 | AK5: 0.8999999762 | AL5: =SUM(AE5:AK5) -> 0.9999999776 | AN5: =AE5*$C$5+AF5*$C$6+AG5*$C$7+AH5*$C$8+AI5*$C$9+AJ5*$C$10+AK5*$C$11 -> 0.1334733969 | AO5: =SDP(7,$E$5:$K$11,AE5:AK5) -> 0.1019994766 | AP5: 1.210529711 | AQ5: =IF(AP5>=0.9999*$AP$2,"Max. Sharpe","") -> 
B6: 2.) FXIA | C6: ='MultiStrategy-Monthly'!Y107 -> 0.0569989218 | E6: =F5 -> 0.001353458293 | F6: ='MultiStrategy-Monthly'!Y109 -> 0.002255578197 | G6: ='MultiStrategy-Monthly'!Z109 -> 0.0008687448741 | H6: ='MultiStrategy-Monthly'!AA109 -> 0.001058175002 | I6: ='MultiStrategy-Monthly'!AB109 -> -0.0006658149407 | J6: ='MultiStrategy-Monthly'!AC109 -> -5.299306996e-05 | K6: ='MultiStrategy-Monthly'!AD109 -> 0.0002132560574 | M6: SD(R2) | N6: =SQRT(F6) -> 0.04749292786 | P6: Corr(1,3) | Q6: =G5/(N5*N7) -> 0.2010202362 | S6: 128.3612766 | T6: -501.4839544 | U6: 751.079486 | V6: 309.6374881 | W6: 63.72646975 | X6: -393.8262096 | Y6: -5.544921178 | AA6: 0.02 | AB6: 0.0342659498 | AD6: 3 | AE6: 0 | AF6: 0 | AG6: 0 | AH6: 0 | AI6: 0 | AJ6: 0.200000003 | AK6: 0.8000000119 | AL6: 1.000000015 | AN6: 0.1300008019 | AO6: 0.09442546219 | AP6: 1.270852153
B7: 3.) FXBQ | C7: ='MultiStrategy-Monthly'!Z107 -> 0.04419256139 | E7: =G5 -> 0.0003302373457 | F7: =G6 -> 0.0008687448741 | G7: ='MultiStrategy-Monthly'!Z110 -> 0.00235077589 | H7: ='MultiStrategy-Monthly'!AA110 -> -8.167104706e-05 | I7: ='MultiStrategy-Monthly'!AB110 -> 0.0003136043006 | J7: ='MultiStrategy-Monthly'!AC110 -> 0.0009036634433 | K7: ='MultiStrategy-Monthly'!AD110 -> 0.00201224655 | M7: SD(R3) | N7: =SQRT(G7) -> 0.04848480061 | P7: Corr(1,4) | Q7: =H5/(N5*N8) -> 0.5320204169 | S7: -248.678608 | T7: -477.9486512 | U7: 309.6374881 | V7: 1048.110575 | W7: 26.20299489 | X7: -472.0620986 | Y7: 135.8771071 | AA7: 0.03 | AB7: 0.03025551232 | AD7: 4 | AE7: 0 | AF7: 0 | AG7: 0 | AH7: 0 | AI7: 0 | AJ7: 0.3000000119 | AK7: 0.6999999881 | AL7: 1 | AN7: 0.1265281996 | AO7: 0.0869916454 | AP7: 1.339533228
B8: 4.) FXC | C8: ='MultiStrategy-Monthly'!AA107 -> 0.07439294118 | E8: =H5 -> 0.0007579151689 | F8: =H6 -> 0.001058175002 | G8: =H7 -> -8.167104706e-05 | H8: ='MultiStrategy-Monthly'!AA111 -> 0.001767758832 | I8: ='MultiStrategy-Monthly'!AB111 -> -0.0005194035982 | J8: ='MultiStrategy-Monthly'!AC111 -> 5.915468512e-05 | K8: ='MultiStrategy-Monthly'!AD111 -> -0.0006752652581 | M8: SD(R4) | N8: =SQRT(H8) -> 0.04204472419 | P8: Corr(1,5) | Q8: =I5/(N5*N9) -> -0.2275592189 | S8: 22.2868831 | T8: 19.25759472 | U8: 63.72646975 | V8: 26.20299489 | W8: 223.6024995 | X8: -119.7966527 | Y8: -66.40506865 | AA8: 0.04 | AB8: 0.02676728032 | AD8: 5 | AE8: 0 | AF8: 0 | AG8: 0 | AH8: 0 | AI8: 0 | AJ8: 0.400000006 | AK8: 0.6000000238 | AL8: 1.00000003 | AN8: 0.1230556039 | AO8: 0.07973726094 | AP8: 1.417851611
B9: 5.) V1 | C9: ='MultiStrategy-Monthly'!AB107 -> 0.193233 | E9: =I5 -> -0.000648234301 | F9: =I6 -> -0.0006658149407 | G9: =I7 -> 0.0003136043006 | H9: =I8 -> -0.0005194035982 | I9: ='MultiStrategy-Monthly'!AB112 -> 0.007068277029 | J9: ='MultiStrategy-Monthly'!AC112 -> 0.001899604675 | K9: ='MultiStrategy-Monthly'!AD112 -> 0.00499997944 | M9: SD(R5) | N9: =SQRT(I9) -> 0.0840730458 | P9: Corr(1,6) | Q9: =J5/(N5*N10) -> -0.1463610384 | S9: 158.2698781 | T9: 305.4117059 | U9: -393.8262096 | V9: -472.0620986 | W9: -119.7966527 | X9: 1381.718795 | Y9: -318.7423252 | AA9: 0.05 | AB9: 0.02402975501 | AD9: 6 | AE9: 0 | AF9: 0 | AG9: 0 | AH9: 0 | AI9: 0 | AJ9: 0.5 | AK9: 0.5 | AL9: 1 | AN9: 0.119583 | AO9: 0.07271600515 | AP9: 1.506999728
B10: 6.) V2 | C10: ='MultiStrategy-Monthly'!AC107 -> 0.10222 | E10: =J5 -> -0.0002230029491 | F10: =J6 -> -5.299306996e-05 | G10: =J7 -> 0.0009036634433 | H10: =J8 -> 5.915468512e-05 | I10: =J9 -> 0.001899604675 | J10: ='MultiStrategy-Monthly'!AC113 -> 0.002022128102 | K10: ='MultiStrategy-Monthly'!AD113 -> 0.003548809323 | M10: SD(R6) | N10: =SQRT(J10) -> 0.0449680787 | P10: Corr(1,7) | Q10: =K5/(N5*N11) -> -0.1040415786 | S10: 49.49658429 | T10: -138.9496151 | U10: -5.544921178 | V10: 135.8771071 | W10: -66.40506865 | X10: -318.7423252 | Y10: 217.3485849 | AA10: 0.06 | AB10: 0.02232087622 | AD10: 7 | AE10: 0 | AF10: 0 | AG10: 0 | AH10: 0 | AI10: 0 | AJ10: 0.6000000238 | AK10: 0.3999999762 | AL10: 1 | AN10: 0.1161103992 | AO10: 0.06600234658 | AP10: 1.607676161
B11: 7.) V4 | C11: ='MultiStrategy-Monthly'!AD107 -> 0.136946 | E11: =K5 -> -0.0003866638897 | F11: =K6 -> 0.0002132560574 | G11: =K7 -> 0.00201224655 | H11: =K8 -> -0.0006752652581 | I11: =K9 -> 0.00499997944 | J11: =K10 -> 0.003548809323 | K11: ='MultiStrategy-Monthly'!AD114 -> 0.01203072448 | M11: SD(R7) | N11: =SQRT(K11) -> 0.1096846593 | P11: Corr(2,3) | Q11: =G6/(N6*N7) -> 0.3772747128 | AA11: 0.07 | AB11: 0.02188297202 | AD11: 8 | AE11: 0 | AF11: 0 | AG11: 0 | AH11: 0 | AI11: 0 | AJ11: 0.6999999881 | AK11: 0.3000000119 | AL11: 1 | AN11: 0.1126378004 | AO11: 0.05970015377 | AP11: 1.719221709
B12: Risk-Free Rate | C12: 0.01 | P12: Corr(2,4) | Q12: =H6/(N6*N8) -> 0.5299282181 | S12: Efficient frontier parabola coefficients | AA12: 0.08 | AB12: 0.0227894268 | AD12: 9 | AE12: 0 | AF12: 0 | AG12: 0 | AH12: 0 | AI12: 0 | AJ12: 0.8000000119 | AK12: 0.1999999881 | AL12: 1 | AN12: 0.1091651996 | AO12: 0.05395377427 | AP12: 1.837965943
M13: Tangent Portfolio | P13: Corr(2,5) | Q13: =I6/(N6*N9) -> -0.1667507558 | S13: A | T13: B | U13: C | V13: Delta | AA13: 0.09 | AB13: 0.02489381535 | AD13: 10 | AE13: 0 | AF13: 0 | AG13: 0 | AH13: 0 | AI13: 0 | AJ13: 0.9000000358 | AK13: 0.09999996424 | AL13: 1 | AN13: 0.1056925988 | AO13: 0.04895933345 | AP13: 1.954532303
M14: p1 | N14: 0.3000000119 | P14: Corr(2,6) | Q14: =J6/(N6*N10) -> -0.02481337295 | S14: =FrontierCoef(7,S4:Y10,C5:C11) -> 2092.349854 | T14: 142.7698822 | U14: 13.08344841 | V14: 6991.914062 | AA14: 0.1 | AB14: 0.02792663015 | AD14: 11 | AE14: 0 | AF14: 0 | AG14: 0 | AH14: 0 | AI14: 0 | AJ14: 1 | AK14: 0 | AL14: 1 | AN14: 0.10222 | AO14: 0.04496807978 | AP14: 2.050788036
M15: p2 | N15: 0 | P15: Corr(2,7) | Q15: =K6/(N6*N11) -> 0.04093799244 | AA15: 0.11 | AB15: 0.03162185732 | AD15: 12 | AE15: 0 | AF15: 0 | AG15: 0 | AH15: 0 | AI15: 0.1000000015 | AJ15: 0 | AK15: 0.8999999762 | AL15: 0.9999999776 | AN15: 0.142574697 | AO15: 0.1035160199 | AP15: 1.280716716
M16: p3 | N16: 0 | P16: Corr(3,4) | Q16: =H7/(N7*N8) -> -0.04006369506 | AA16: 0.12 | AB16: 0.03577481808 | AD16: 13 | AE16: 0 | AF16: 0 | AG16: 0 | AH16: 0 | AI16: 0.1000000015 | AJ16: 0.1000000015 | AK16: 0.8000000119 | AL16: 1.000000015 | AN16: 0.1391021021 | AO16: 0.09589768946 | AP16: 1.346248307
M17: p4 | N17: 0.3000000119 | P17: Corr(3,5) | Q17: =I7/(N7*N9) -> 0.07693423053 | AA17: 0.13 | AB17: 0.04024405443 | AD17: 14 | AE17: 0 | AF17: 0 | AG17: 0 | AH17: 0 | AI17: 0.1000000015 | AJ17: 0.200000003 | AK17: 0.6999999881 | AL17: 0.9999999925 | AN17: 0.135629499 | AO17: 0.08840967715 | AP17: 1.420992622
M18: p5 | N18: 0.200000003 | P18: Corr(3,6) | Q18: =J7/(N7*N10) -> 0.414473499 | AA18: 0.14 | AB18: 0.04493529553 | AD18: 15 | AE18: 0 | AF18: 0 | AG18: 0 | AH18: 0 | AI18: 0.1000000015 | AJ18: 0.3000000119 | AK18: 0.6000000238 | AL18: 1.000000037 | AN18: 0.1321569048 | AO18: 0.08108810335 | AP18: 1.506471353
M19: p6 | N19: 0.200000003 | P19: Corr(3,7) | Q19: =K7/(N7*N11) -> 0.3783813192 | AA19: 0.15 | AB19: 0.04978582341 | AD19: 16 | AE19: 0 | AF19: 0 | AG19: 0 | AH19: 0 | AI19: 0.1000000015 | AJ19: 0.400000006 | AK19: 0.5 | AL19: 1.000000007 | AN19: 0.1286843009 | AO19: 0.07398239523 | AP19: 1.604223552
M20: p7 | N20: 0 | P20: Corr(4,5) | Q20: =I8/(N8*N9) -> -0.1469388595 | AA20: 0.16 | AB20: 0.05475332136 | AD20: 17 | AE20: 0 | AF20: 0 | AG20: 0 | AH20: 0 | AI20: 0.1000000015 | AJ20: 0.5 | AK20: 0.3999999762 | AL20: 0.9999999776 | AN20: 0.125211697 | AO20: 0.06716109812 | AP20: 1.715452848
M21: Overlev. | N21: 1 | P21: Corr(4,6) | Q21: =J8/(N8*N10) -> 0.03128767608 | AA21: 0.17 | AB21: 0.05980865111 | AD21: 18 | AE21: 0 | AF21: 0 | AG21: 0 | AH21: 0 | AI21: 0.1000000015 | AJ21: 0.6000000238 | AK21: 0.3000000119 | AL21: 1.000000037 | AN21: 0.1217391044 | AO21: 0.06072015688 | AP21: 1.840230825
M22: E(Rp) | N22: =(1-N21)*RFR+(N14*C5+N15*C6+N16*C7+N17*C8+N18*C9+N19*C10+N20*C11)*N21 -> 0.09555268712 | P22: Corr(4,7) | Q22: =K8/(N8*N11) -> -0.1464255985 | AA22: 0.18 | AB22: 0.06493130104 | AD22: 19 | AE22: 0 | AF22: 0 | AG22: 0 | AH22: 0 | AI22: 0.1000000015 | AJ22: 0.6999999881 | AK22: 0.1999999881 | AL22: 0.9999999776 | AN22: 0.1182664974 | AO22: 0.05479383841 | AP22: 1.975888176
M23: Var(Rp) | N23: =(N14*N21)^2*E5+(N15*N21)^2*F6+(N16*N21)^2*G7+(N17*N21)^2*H8+(N18*N21)^2*I9+(N19*N21)^2*J10+(N20*N21)^2*K11+2*(N14*N15*N21*N21)*F5+2*(N14*N16*N21*N21)*G5+2*(N14*N17*N21*N21)*H5+2*(N14*N18*N21*N21)*I5+2*(N14*N19*N21*N21)*J5+2*(N14*N20*N21*N21)*K5+2*(N15*N16*N21*N21)*G6+2*(N15*N17*N21*N21)*H6+2*(N15*N18*N21*N21)*I6+2*(N15*N19*N21*N21)*J6+2*(N15*N20*N21*N21)*K6+2*(N16*N17*N21*N21)*H7+2*(N16*N18*N21*N21)*I7+2*(N16*N19*N21*N21)*J7+2*(N16*N20*N21*N21)*K7+2*(N17*N18*N21*N21)*I8+2*(N17*N19*N21*N21)*J8+2*(N17*N20*N21*N21)*K8+2*(N18*N19*N21*N21)*J9+2*(N18*N20*N21*N21)*K9+2*(N19*N20*N21*N21)*K10 -> 0.0007546539891 | P23: Corr(5,6) | Q23: =J9/(N9*N10) -> 0.5024607197 | AA23: 0.19 | AB23: 0.07010651554 | AD23: 20 | AE23: 0 | AF23: 0 | AG23: 0 | AH23: 0 | AI23: 0.1000000015 | AJ23: 0.8000000119 | AK23: 0.09999996424 | AL23: 0.9999999776 | AN23: 0.1147938966 | AO23: 0.04956709966 | AP23: 2.114182539
M24: SD(Rp) | N24: =SQRT(N23) -> 0.02747096629 | P24: Corr(5,7) | Q24: =K9/(N9*N11) -> 0.5422075327 | AA24: 0.2 | AB24: 0.07532346081 | AD24: 21 | AE24: 0 | AF24: 0 | AG24: 0 | AH24: 0 | AI24: 0.1000000015 | AJ24: 0.9000000358 | AK24: 0 | AL24: 1.000000037 | AN24: 0.1113213039 | AO24: 0.04528284073 | AP24: 2.237520931
M25: Sharpe Ratio | N25: =(N22-RFR)/N24 -> 3.114294787 | P25: Corr(6,7) | Q25: =K10/(N10*N11) -> 0.7195027243 | AA25: 0.21 | AB25: 0.08057403139 | AD25: 22 | AE25: 0 | AF25: 0 | AG25: 0 | AH25: 0 | AI25: 0.200000003 | AJ25: 0 | AK25: 0.8000000119 | AL25: 1.000000015 | AN25: 0.1482034022 | AO25: 0.09788967669 | AP25: 1.411828161
AA26: 0.22 | AB26: 0.08585205811 | AD26: 23 | AE26: 0 | AF26: 0 | AG26: 0 | AH26: 0 | AI26: 0.200000003 | AJ26: 0.1000000015 | AK26: 0.6999999881 | AL26: 0.9999999925 | AN26: 0.1447307991 | AO26: 0.09039258212 | AP26: 1.490507251
M27: Selected Portfolio | P27: Minimum pi | Q27: 0 | AA27: 0.23 | AB27: 0.09115277169 | AD27: 24 | AE27: 0 | AF27: 0 | AG27: 0 | AH27: 0 | AI27: 0.200000003 | AJ27: 0.200000003 | AK27: 0.6000000238 | AL27: 1.00000003 | AN27: 0.1412582041 | AO27: 0.08305633813 | AP27: 1.580351447
M28: p1 | N28: =1/7 -> 0.1428571429 | AA28: 0.24 | AB28: 0.09647243261 | AD28: 25 | AE28: 0 | AF28: 0 | AG28: 0 | AH28: 0 | AI28: 0.200000003 | AJ28: 0.3000000119 | AK28: 0.5 | AL28: 1.000000015 | AN28: 0.1377856018 | AO28: 0.07592756301 | AP28: 1.682993589
M29: p2 | N29: 0.1428571429 | P29: Capital Market Line | AA29: 0.25 | AB29: 0.1018080708 | AD29: 26 | AE29: 0 | AF29: 0 | AG29: 0 | AH29: 0 | AI29: 0.200000003 | AJ29: 0.400000006 | AK29: 0.3999999762 | AL29: 0.9999999851 | AN29: 0.1343129979 | AO29: 0.06907054037 | AP29: 1.799797674
H30: . | M30: p3 | N30: 0.1428571429 | P30: X | Q30: Y | AA30: 0.26 | AB30: 0.1071572996 | AD30: 27 | AE30: 0 | AF30: 0 | AG30: 0 | AH30: 0 | AI30: 0.200000003 | AJ30: 0.5 | AK30: 0.3000000119 | AL30: 1.000000015 | AN30: 0.1308404022 | AO30: 0.06257467717 | AP30: 1.931139043
M31: p4 | N31: 0.1428571429 | P31: 0 | Q31: =C12 -> 0.01 | AA31: 0.27 | AB31: 0.1125181808 | AD31: 28 | AE31: 0 | AF31: 0 | AG31: 0 | AH31: 0 | AI31: 0.200000003 | AJ31: 0.6000000238 | AK31: 0.1999999881 | AL31: 1.000000015 | AN31: 0.1273678014 | AO31: 0.05656450987 | AP31: 2.074937123
M32: p5 | N32: 0.1428571429 | P32: =N38 -> 0.04156034426 | Q32: =N36 -> 0.1103081313 | AA32: 0.28 | AB32: 0.1178891247 | AD32: 29 | AE32: 0 | AF32: 0 | AG32: 0 | AH32: 0 | AI32: 0.200000003 | AJ32: 0.6999999881 | AK32: 0.09999996424 | AL32: 0.9999999553 | AN32: 0.1238951945 | AO32: 0.05121134967 | AP32: 2.224022511
M33: p6 | N33: 0.1428571429 | P33: =MAX(N5:N11) -> 0.1096846593 | Q33: =P33*(Q32-Q31)/(P32-P31)+Q31 -> 0.274729838 | AA33: 0.29 | AB33: 0.1232688159 | AD33: 30 | AE33: 0 | AF33: 0 | AG33: 0 | AH33: 0 | AI33: 0.200000003 | AJ33: 0.8000000119 | AK33: 0 | AL33: 1.000000015 | AN33: 0.1204226018 | AO33: 0.0467414856 | AP33: 2.362411044
M34: p7 | N34: 0.1428571429 | AA34: 0.3 | AB34: 0.1286561573 | AD34: 31 | AE34: 0 | AF34: 0 | AG34: 0 | AH34: 0 | AI34: 0.3000000119 | AJ34: 0 | AK34: 0.6999999881 | AL34: 1 | AN34: 0.1538321007 | AO34: 0.09290420264 | AP34: 1.548176472
M35: Overlev. | N35: 1.2 | AA35: 0.31 | AB35: 0.1340502264 | AD35: 32 | AE35: 0 | AF35: 0 | AG35: 0 | AH35: 0 | AI35: 0.3000000119 | AJ35: 0.1000000015 | AK35: 0.6000000238 | AL35: 1.000000037 | AN35: 0.1503595057 | AO35: 0.08559937775 | AP35: 1.639725771
M36: E(Rp) | N36: =(1-N35)*RFR+(N28*C5+N29*C6+N30*C7+N31*C8+N32*C9+N33*C10+N34*C11)*N35 -> 0.1103081313 | AA36: 0.32 | AB36: =SQRT(($S$14*AA36*AA36-2*$T$14*AA36+$U$14)/$V$14) -> 0.1394502425 | AD36: 33 | AE36: 0 | AF36: 0 | AG36: 0 | AH36: 0 | AI36: 0.3000000119 | AJ36: 0.200000003 | AK36: 0.5 | AL36: 1.000000015 | AN36: 0.1468869026 | AO36: 0.07850108296 | AP36: 1.743758143
M37: Var(Rp) | N37: =(N28*N35)^2*E5+(N29*N35)^2*F6+(N30*N35)^2*G7+(N31*N35)^2*H8+(N32*N35)^2*I9+(N33*N35)^2*J10+(N34*N35)^2*K11+2*(N28*N29*N35*N35)*F5+2*(N28*N30*N35*N35)*G5+2*(N28*N31*N35*N35)*H5+2*(N28*N32*N35*N35)*I5+2*(N28*N33*N35*N35)*J5+2*(N28*N34*N35*N35)*K5+2*(N29*N30*N35*N35)*G6+2*(N29*N31*N35*N35)*H6+2*(N29*N32*N35*N35)*I6+2*(N29*N33*N35*N35)*J6+2*(N29*N34*N35*N35)*K6+2*(N30*N31*N35*N35)*H7+2*(N30*N32*N35*N35)*I7+2*(N30*N33*N35*N35)*J7+2*(N30*N34*N35*N35)*K7+2*(N31*N32*N35*N35)*I8+2*(N31*N33*N35*N35)*J8+2*(N31*N34*N35*N35)*K8+2*(N32*N33*N35*N35)*J9+2*(N32*N34*N35*N35)*K9+2*(N33*N34*N35*N35)*K10 -> 0.001727262215 | AA37: 0.33 | AB37: 0.1448555406 | AD37: 34 | AE37: 0 | AF37: 0 | AG37: 0 | AH37: 0 | AI37: 0.3000000119 | AJ37: 0.3000000119 | AK37: 0.3999999762 | AL37: 1 | AN37: 0.1434143003 | AO37: 0.07167070359 | AP37: 1.861490031
M38: SD(Rp) | N38: =SQRT(N37) -> 0.04156034426 | AA38: 0.34 | AB38: 0.1502655506 | AD38: 35 | AE38: 0 | AF38: 0 | AG38: 0 | AH38: 0 | AI38: 0.3000000119 | AJ38: 0.400000006 | AK38: 0.3000000119 | AL38: 1.00000003 | AN38: 0.1399417045 | AO38: 0.06519253552 | AP38: 1.993199122
M39: Sharpe Ratio | N39: =(N36-RFR)/N38 -> 2.413553908 | AA39: 0.35 | AB39: 0.1556797814 | AD39: 36 | AE39: 0 | AF39: 0 | AG39: 0 | AH39: 0 | AI39: 0.3000000119 | AJ39: 0.5 | AK39: 0.1999999881 | AL39: 1 | AN39: 0.1364691007 | AO39: 0.05918231979 | AP39: 2.136940578
AA40: 0.36 | AB40: 0.1610978073 | AD40: 37 | AE40: 0 | AF40: 0 | AG40: 0 | AH40: 0 | AI40: 0.3000000119 | AJ40: 0.6000000238 | AK40: 0.09999996424 | AL40: 1 | AN40: 0.1329964998 | AO40: 0.05379713327 | AP40: 2.28630212
AA41: 0.37 | AB41: 0.1665192579 | AD41: 38 | AE41: 0 | AF41: 0 | AG41: 0 | AH41: 0 | AI41: 0.3000000119 | AJ41: 0.6999999881 | AK41: 0 | AL41: 1 | AN41: 0.1295239011 | AO41: 0.04924247786 | AP41: 2.427251964
AA42: 0.38 | AB42: 0.1719438093 | AD42: 39 | AE42: 0 | AF42: 0 | AG42: 0 | AH42: 0 | AI42: 0.400000006 | AJ42: 0 | AK42: 0.6000000238 | AL42: 1.00000003 | AN42: 0.1594608044 | AO42: 0.08866778016 | AP42: 1.685627002
AA43: 0.39 | AB43: 0.177371177 | AD43: 40 | AE43: 0 | AF43: 0 | AG43: 0 | AH43: 0 | AI43: 0.400000006 | AJ43: 0.1000000015 | AK43: 0.5 | AL43: 1.000000007 | AN43: 0.1559882013 | AO43: 0.08164354414 | AP43: 1.788116903
AA44: 0.4 | AB44: 0.1828011101 | AD44: 41 | AE44: 0 | AF44: 0 | AG44: 0 | AH44: 0 | AI44: 0.400000006 | AJ44: 0.200000003 | AK44: 0.3999999762 | AL44: 0.9999999851 | AN44: 0.1525155982 | AO44: 0.07488968223 | AP44: 1.903007116
AA45: 0.41 | AB45: 0.1882333866 | AD45: 42 | AE45: 0 | AF45: 0 | AG45: 0 | AH45: 0 | AI45: 0.400000006 | AJ45: 0.3000000119 | AK45: 0.3000000119 | AL45: 1.00000003 | AN45: 0.149043004 | AO45: 0.06848625839 | AP45: 2.030232156
AA46: 0.42 | AB46: 0.1936678093 | AD46: 43 | AE46: 0 | AF46: 0 | AG46: 0 | AH46: 0 | AI46: 0.400000006 | AJ46: 0.400000006 | AK46: 0.1999999881 | AL46: 1 | AN46: 0.1455704001 | AO46: 0.06254097819 | AP46: 2.167705144
AA47: 0.43 | AB47: 0.1991042025 | AD47: 44 | AE47: 0 | AF47: 0 | AG47: 0 | AH47: 0 | AI47: 0.400000006 | AJ47: 0.5 | AK47: 0.09999996424 | AL47: 0.9999999702 | AN47: 0.1420977963 | AO47: 0.0571968928 | AP47: 2.30952749
AA48: 0.44 | AB48: 0.2045424091 | AD48: 45 | AE48: 0 | AF48: 0 | AG48: 0 | AH48: 0 | AI48: 0.400000006 | AJ48: 0.6000000238 | AK48: 0 | AL48: 1.00000003 | AN48: 0.1386252036 | AO48: 0.05263744667 | AP48: 2.443606438
AA49: 0.45 | AB49: 0.2099822882 | AD49: 46 | AE49: 0 | AF49: 0 | AG49: 0 | AH49: 0 | AI49: 0.5 | AJ49: 0 | AK49: 0.5 | AL49: 1 | AN49: 0.1650895 | AO49: 0.08529208601 | AP49: 1.818334001
AA50: 0.46 | AB50: 0.215423713 | AD50: 47 | AE50: 0 | AF50: 0 | AG50: 0 | AH50: 0 | AI50: 0.5 | AJ50: 0.1000000015 | AK50: 0.3999999762 | AL50: 0.9999999776 | AN50: 0.1616168969 | AO50: 0.07865152508 | AP50: 1.927704475
AA51: 0.47 | AB51: 0.2208665694 | AD51: 48 | AE51: 0 | AF51: 0 | AG51: 0 | AH51: 0 | AI51: 0.5 | AJ51: 0.200000003 | AK51: 0.3000000119 | AL51: 1.000000015 | AN51: 0.1581443019 | AO51: 0.07236360759 | AP51: 2.047221067
AA52: 0.48 | AB52: 0.226310754 | AD52: 49 | AE52: 0 | AF52: 0 | AG52: 0 | AH52: 0 | AI52: 0.5 | AJ52: 0.3000000119 | AK52: 0.1999999881 | AL52: 1 | AN52: 0.1546716996 | AO52: 0.06652837247 | AP52: 2.174586484
AA53: 0.49 | AB53: 0.2317561732 | AD53: 50 | AE53: 0 | AF53: 0 | AG53: 0 | AH53: 0 | AI53: 0.5 | AJ53: 0.400000006 | AK53: 0.09999996424 | AL53: 0.9999999702 | AN53: 0.1511990957 | AO53: 0.06127529219 | AP53: 2.304339819
AA54: 0.5 | AB54: 0.2372027421 | AD54: 51 | AE54: 0 | AF54: 0 | AG54: 0 | AH54: 0 | AI54: 0.5 | AJ54: 0.5 | AK54: 0 | AL54: 1 | AN54: 0.1477265 | AO54: 0.05676621944 | AP54: 2.426205257
AD55: 52 | AE55: 0 | AF55: 0 | AG55: 0 | AH55: 0 | AI55: 0.6000000238 | AJ55: 0 | AK55: 0.3999999762 | AL55: 1 | AN55: 0.1707182013 | AO55: 0.08288235962 | AP55: 1.93911228
AD56: 53 | AE56: 0 | AF56: 0 | AG56: 0 | AH56: 0 | AI56: 0.6000000238 | AJ56: 0.1000000015 | AK56: 0.3000000119 | AL56: 1.000000037 | AN56: 0.1672456064 | AO56: 0.07673617452 | AP56: 2.04917182
AD57: 54 | AE57: 0 | AF57: 0 | AG57: 0 | AH57: 0 | AI57: 0.6000000238 | AJ57: 0.200000003 | AK57: 0.1999999881 | AL57: 1.000000015 | AN57: 0.1637730033 | AO57: 0.07103871554 | AP57: 2.164636594
AD58: 55 | AE58: 0 | AF58: 0 | AG58: 0 | AH58: 0 | AI58: 0.6000000238 | AJ58: 0.3000000119 | AK58: 0.09999996424 | AL58: 1 | AN58: 0.1603004009 | AO58: 0.06590646505 | AP58: 2.280510733
AD59: 56 | AE59: 0 | AF59: 0 | AG59: 0 | AH59: 0 | AI59: 0.6000000238 | AJ59: 0.400000006 | AK59: 0 | AL59: 1.00000003 | AN59: 0.1568278052 | AO59: 0.06148114428 | AP59: 2.388176195
AD60: 57 | AE60: 0 | AF60: 0 | AG60: 0 | AH60: 0 | AI60: 0.6999999881 | AJ60: 0 | AK60: 0.3000000119 | AL60: 1 | AN60: 0.1763468993 | AO60: 0.08152430505 | AP60: 2.040457741
AD61: 58 | AE61: 0 | AF61: 0 | AG61: 0 | AH61: 0 | AI61: 0.6999999881 | AJ61: 0.1000000015 | AK61: 0.1999999881 | AL61: 0.9999999776 | AN61: 0.1728742962 | AO61: 0.07597892731 | AP61: 2.143677227
AD62: 59 | AE62: 0 | AF62: 0 | AG62: 0 | AH62: 0 | AI62: 0.6999999881 | AJ62: 0.200000003 | AK62: 0.09999996424 | AL62: 0.9999999553 | AN62: 0.1694016931 | AO62: 0.07098229229 | AP62: 2.245654345
AD63: 60 | AE63: 0 | AF63: 0 | AG63: 0 | AH63: 0 | AI63: 0.6999999881 | AJ63: 0.3000000119 | AK63: 0 | AL63: 1 | AN63: 0.1659290989 | AO63: 0.06665794551 | AP63: 2.339242497
AD64: 61 | AE64: 0 | AF64: 0 | AG64: 0 | AH64: 0 | AI64: 0.8000000119 | AJ64: 0 | AK64: 0.1999999881 | AL64: 1 | AN64: 0.1819756007 | AO64: 0.08127065748 | AP64: 2.116084772
AD65: 62 | AE65: 0 | AF65: 0 | AG65: 0 | AH65: 0 | AI65: 0.8000000119 | AJ65: 0.1000000015 | AK65: 0.09999996424 | AL65: 0.9999999776 | AN65: 0.1785029976 | AO65: 0.07641424239 | AP65: 2.205125541
AD66: 63 | AE66: 0 | AF66: 0 | AG66: 0 | AH66: 0 | AI66: 0.8000000119 | AJ66: 0.200000003 | AK66: 0 | AL66: 1.000000015 | AN66: 0.1750304026 | AO66: 0.07219734043 | AP66: 2.285823849
AD67: 64 | AE67: 0 | AF67: 0 | AG67: 0 | AH67: 0 | AI67: 0.9000000358 | AJ67: 0 | AK67: 0.09999996424 | AL67: 1 | AN67: 0.187604302 | AO67: 0.08213165402 | AP67: 2.162434254
AD68: 65 | AE68: 0 | AF68: 0 | AG68: 0 | AH68: 0 | AI68: 0.9000000358 | AJ68: 0.1000000015 | AK68: 0 | AL68: 1.000000037 | AN68: 0.1841317071 | AO68: 0.07802214473 | AP68: =(AN68-RFR)/AO68 -> 2.231824153
AD69: 66 | AE69: 0 | AF69: 0 | AG69: 0 | AH69: 0 | AI69: 1 | AJ69: 0 | AK69: 0 | AL69: =SUM(AE69:AK69) -> 1 | AN69: =AE69*$C$5+AF69*$C$6+AG69*$C$7+AH69*$C$8+AI69*$C$9+AJ69*$C$10+AK69*$C$11 -> 0.193233 | AO69: =SDP(7,$E$5:$K$11,AE69:AK69) -> 0.08407304436 | AP69: 2.179450041 | AQ69: =IF(AP69>=0.9999*$AP$2,"Max. Sharpe","") -> 
AD70: 67 | AE70: 0 | AF70: 0 | AG70: 0 | AH70: 0.1000000015 | AI70: 0 | AJ70: 0 | AK70: 0.8999999762 | AL70: 0.9999999776 | AN70: 0.130690691 | AO70: 0.09818867594 | AP70: 1.229171183
AD71: 68 | AE71: 0 | AF71: 0 | AG71: 0 | AH71: 0.1000000015 | AI71: 0 | AJ71: 0.1000000015 | AK71: 0.8000000119 | AL71: 1.000000015 | AN71: 0.127218096 | AO71: 0.0905456394 | AP71: 1.294574723
AD72: 69 | AE72: 0 | AF72: 0 | AG72: 0 | AH72: 0.1000000015 | AI72: 0 | AJ72: 0.200000003 | AK72: 0.6999999881 | AL72: 0.9999999925 | AN72: 0.1237454929 | AO72: 0.08303681761 | AP72: 1.369819993
AD73: 70 | AE73: 0 | AF73: 0 | AG73: 0 | AH73: 0.1000000015 | AI73: 0 | AJ73: 0.3000000119 | AK73: 0.6000000238 | AL73: 1.000000037 | AN73: 0.1202728987 | AO73: 0.0757021755 | AP73: 1.4566675
AD74: 71 | AE74: 0 | AF74: 0 | AG74: 0 | AH74: 0.1000000015 | AI74: 0 | AJ74: 0.400000006 | AK74: 0.5 | AL74: 1.000000007 | AN74: 0.1168002948 | AO74: 0.06859758496 | AP74: 1.55691042
AD75: 72 | AE75: 0 | AF75: 0 | AG75: 0 | AH75: 0.1000000015 | AI75: 0 | AJ75: 0.5 | AK75: 0.3999999762 | AL75: 0.9999999776 | AN75: 0.113327691 | AO75: 0.06180245429 | AP75: 1.671902712
AD76: 73 | AE76: 0 | AF76: 0 | AG76: 0 | AH76: 0.1000000015 | AI76: 0 | AJ76: 0.6000000238 | AK76: 0.3000000119 | AL76: 1.000000037 | AN76: 0.1098550983 | AO76: 0.05543070659 | AP76: 1.801440112
AD77: 74 | AE77: 0 | AF77: 0 | AG77: 0 | AH77: 0.1000000015 | AI77: 0 | AJ77: 0.6999999881 | AK77: 0.1999999881 | AL77: 0.9999999776 | AN77: 0.1063824914 | AO77: 0.04964561015 | AP77: 1.941410148
AD78: 75 | AE78: 0 | AF78: 0 | AG78: 0 | AH78: 0.1000000015 | AI78: 0 | AJ78: 0.8000000119 | AK78: 0.09999996424 | AL78: 0.9999999776 | AN78: 0.1029098905 | AO78: 0.04467566684 | AP78: 2.079653134
AD79: 76 | AE79: 0 | AF79: 0 | AG79: 0 | AH79: 0.1000000015 | AI79: 0 | AJ79: 0.9000000358 | AK79: 0 | AL79: 1.000000037 | AN79: 0.09943729788 | AO79: 0.04081971943 | AP79: 2.191031666
AD80: 77 | AE80: 0 | AF80: 0 | AG80: 0 | AH80: 0.1000000015 | AI80: 0.1000000015 | AJ80: 0 | AK80: 0.8000000119 | AL80: 1.000000015 | AN80: 0.1363193961 | AO80: 0.09203038365 | AP80: 1.372583609
AD81: 78 | AE81: 0 | AF81: 0 | AG81: 0 | AH81: 0.1000000015 | AI81: 0.1000000015 | AJ81: 0.1000000015 | AK81: 0.6999999881 | AL81: 0.9999999925 | AN81: 0.132846793 | AO81: 0.08446725458 | AP81: 1.454371799
AD82: 79 | AE82: 0 | AF82: 0 | AG82: 0 | AH82: 0.1000000015 | AI82: 0.1000000015 | AJ82: 0.200000003 | AK82: 0.6000000238 | AL82: 1.00000003 | AN82: 0.1293741981 | AO82: 0.07706457376 | AP82: 1.549015225
AD83: 80 | AE83: 0 | AF83: 0 | AG83: 0 | AH83: 0.1000000015 | AI83: 0.1000000015 | AJ83: 0.3000000119 | AK83: 0.5 | AL83: 1.000000015 | AN83: 0.1259015957 | AO83: 0.06987334788 | AP83: 1.658738264
AD84: 81 | AE84: 0 | AF84: 0 | AG84: 0 | AH84: 0.1000000015 | AI84: 0.1000000015 | AJ84: 0.400000006 | AK84: 0.3999999762 | AL84: 0.9999999851 | AN84: 0.1224289919 | AO84: 0.06296606362 | AP84: 1.785548999
AD85: 82 | AE85: 0 | AF85: 0 | AG85: 0 | AH85: 0.1000000015 | AI85: 0.1000000015 | AJ85: 0.5 | AK85: 0.3000000119 | AL85: 1.000000015 | AN85: 0.1189563961 | AO85: 0.05644706637 | AP85: 1.930240191
AD86: 83 | AE86: 0 | AF86: 0 | AG86: 0 | AH86: 0.1000000015 | AI86: 0.1000000015 | AJ86: 0.6000000238 | AK86: 0.1999999881 | AL86: 1.000000015 | AN86: 0.1154837953 | AO86: 0.05046702921 | AP86: 2.090152659
AD87: 84 | AE87: 0 | AF87: 0 | AG87: 0 | AH87: 0.1000000015 | AI87: 0.1000000015 | AJ87: 0.6999999881 | AK87: 0.09999996424 | AL87: 0.9999999553 | AN87: 0.1120111884 | AO87: 0.04524020106 | AP87: 2.254879201
AD88: 85 | AE88: 0 | AF88: 0 | AG88: 0 | AH88: 0.1000000015 | AI88: 0.1000000015 | AJ88: 0.8000000119 | AK88: 0 | AL88: 1.000000015 | AN88: 0.1085385957 | AO88: 0.04105527699 | AP88: 2.400144463
AD89: 86 | AE89: 0 | AF89: 0 | AG89: 0 | AH89: 0.1000000015 | AI89: 0.200000003 | AJ89: 0 | AK89: 0.6999999881 | AL89: 0.9999999925 | AN89: 0.1419480932 | AO89: 0.08648782969 | AP89: 1.525626133
AD90: 87 | AE90: 0 | AF90: 0 | AG90: 0 | AH90: 0.1000000015 | AI90: 0.200000003 | AJ90: 0.1000000015 | AK90: 0.6000000238 | AL90: 1.00000003 | AN90: 0.1384754982 | AO90: 0.0790752992 | AP90: 1.624723517
AD91: 88 | AE91: 0 | AF91: 0 | AG91: 0 | AH91: 0.1000000015 | AI91: 0.200000003 | AJ91: 0.200000003 | AK91: 0.5 | AL91: 1.000000007 | AN91: 0.1350028951 | AO91: 0.07186629623 | AP91: 1.739381347
AD92: 89 | AE92: 0 | AF92: 0 | AG92: 0 | AH92: 0.1000000015 | AI92: 0.200000003 | AJ92: 0.3000000119 | AK92: 0.3999999762 | AL92: 0.9999999925 | AN92: 0.1315302928 | AO92: 0.06492866576 | AP92: 1.871750965
AD93: 90 | AE93: 0 | AF93: 0 | AG93: 0 | AH93: 0.1000000015 | AI93: 0.200000003 | AJ93: 0.400000006 | AK93: 0.3000000119 | AL93: 1.000000022 | AN93: 0.128057697 | AO93: 0.0583592616 | AP93: 2.022947066
AD94: 91 | AE94: 0 | AF94: 0 | AG94: 0 | AH94: 0.1000000015 | AI94: 0.200000003 | AJ94: 0.5 | AK94: 0.1999999881 | AL94: 0.9999999925 | AN94: 0.1245850932 | AO94: 0.05229702964 | AP94: 2.191044003
AD95: 92 | AE95: 0 | AF95: 0 | AG95: 0 | AH95: 0.1000000015 | AI95: 0.200000003 | AJ95: 0.6000000238 | AK95: 0.09999996424 | AL95: 0.9999999925 | AN95: 0.1211124923 | AO95: 0.0469388999 | AP95: 2.367172911
AD96: 93 | AE96: 0 | AF96: 0 | AG96: 0 | AH96: 0.1000000015 | AI96: 0.200000003 | AJ96: 0.6999999881 | AK96: 0 | AL96: 0.9999999925 | AN96: 0.1176398936 | AO96: 0.04255168885 | AP96: 2.529626826
AD97: 94 | AE97: 0 | AF97: 0 | AG97: 0 | AH97: 0.1000000015 | AI97: 0.3000000119 | AJ97: 0 | AK97: 0.6000000238 | AL97: 1.000000037 | AN97: 0.1475767998 | AO97: 0.08168647438 | AP97: 1.684205382
AD98: 95 | AE98: 0 | AF98: 0 | AG98: 0 | AH98: 0.1000000015 | AI98: 0.3000000119 | AJ98: 0.1000000015 | AK98: 0.5 | AL98: 1.000000015 | AN98: 0.1441041967 | AO98: 0.07451891154 | AP98: 1.79959951
AD99: 96 | AE99: 0 | AF99: 0 | AG99: 0 | AH99: 0.1000000015 | AI99: 0.3000000119 | AJ99: 0.200000003 | AK99: 0.3999999762 | AL99: 0.9999999925 | AN99: 0.1406315936 | AO99: 0.06762071699 | AP99: 1.931827987
AD100: 97 | AE100: 0 | AF100: 0 | AG100: 0 | AH100: 0.1000000015 | AI100: 0.3000000119 | AJ100: 0.3000000119 | AK100: 0.3000000119 | AL100: 1.000000037 | AN100: 0.1371589994 | AO100: 0.06108321622 | AP100: 2.081733858
AD101: 98 | AE101: 0 | AF101: 0 | AG101: 0 | AH101: 0.1000000015 | AI101: 0.3000000119 | AJ101: 0.400000006 | AK101: 0.1999999881 | AL101: 1.000000007 | AN101: 0.1336863955 | AO101: 0.05503509566 | AP101: 2.247409476
AD102: 99 | AE102: 0 | AF102: 0 | AG102: 0 | AH102: 0.1000000015 | AI102: 0.3000000119 | AJ102: 0.5 | AK102: 0.09999996424 | AL102: 0.9999999776 | AN102: 0.1302137916 | AO102: 0.0496555008 | AP102: 2.420956182
AD103: 100 | AE103: 0 | AF103: 0 | AG103: 0 | AH103: 0.1000000015 | AI103: 0.3000000119 | AJ103: 0.6000000238 | AK103: 0 | AL103: 1.000000037 | AN103: 0.126741199 | AO103: 0.04518385604 | AP103: 2.583692699
AD104: 101 | AE104: 0 | AF104: 0 | AG104: 0 | AH104: 0.1000000015 | AI104: 0.400000006 | AJ104: 0 | AK104: 0.5 | AL104: 1.000000007 | AN104: 0.1532054954 | AO104: 0.07776372135 | AP104: 1.841546326
AD105: 102 | AE105: 0 | AF105: 0 | AG105: 0 | AH105: 0.1000000015 | AI105: 0.400000006 | AJ105: 0.1000000015 | AK105: 0.3999999762 | AL105: 0.9999999851 | AN105: 0.1497328923 | AO105: 0.07095924765 | AP105: 1.96919918
AD106: 103 | AE106: 0 | AF106: 0 | AG106: 0 | AH106: 0.1000000015 | AI106: 0.400000006 | AJ106: 0.200000003 | AK106: 0.3000000119 | AL106: 1.000000022 | AN106: 0.1462602973 | AO106: 0.06451619416 | AP106: 2.112032476
AD107: 104 | AE107: 0 | AF107: 0 | AG107: 0 | AH107: 0.1000000015 | AI107: 0.400000006 | AJ107: 0.3000000119 | AK107: 0.1999999881 | AL107: 1.000000007 | AN107: 0.142787695 | AO107: 0.05855397135 | AP107: 2.2677829
AD108: 105 | AE108: 0 | AF108: 0 | AG108: 0 | AH108: 0.1000000015 | AI108: 0.400000006 | AJ108: 0.400000006 | AK108: 0.09999996424 | AL108: 0.9999999776 | AN108: 0.1393150911 | AO108: 0.05323439837 | AP108: 2.429164132
AD109: 106 | AE109: 0 | AF109: 0 | AG109: 0 | AH109: 0.1000000015 | AI109: 0.400000006 | AJ109: 0.5 | AK109: 0 | AL109: 1.000000007 | AN109: 0.1358424954 | AO109: 0.04876821861 | AP109: 2.580420179
AD110: 107 | AE110: 0 | AF110: 0 | AG110: 0 | AH110: 0.1000000015 | AI110: 0.5 | AJ110: 0 | AK110: 0.3999999762 | AL110: 0.9999999776 | AN110: 0.158834191 | AO110: 0.0748578161 | AP110: 1.988225128
AD111: 108 | AE111: 0 | AF111: 0 | AG111: 0 | AH111: 0.1000000015 | AI111: 0.5 | AJ111: 0.1000000015 | AK111: 0.3000000119 | AL111: 1.000000015 | AN111: 0.155361596 | AO111: 0.06855175644 | AP111: 2.120464939
AD112: 109 | AE112: 0 | AF112: 0 | AG112: 0 | AH112: 0.1000000015 | AI112: 0.5 | AJ112: 0.200000003 | AK112: 0.1999999881 | AL112: 0.9999999925 | AN112: 0.1518889929 | AO112: 0.06272238493 | AP112: 2.262174709
AD113: 110 | AE113: 0 | AF113: 0 | AG113: 0 | AH113: 0.1000000015 | AI113: 0.5 | AJ113: 0.3000000119 | AK113: 0.09999996424 | AL113: 0.9999999776 | AN113: 0.1484163905 | AO113: 0.05751483887 | AP113: 2.406620505
AD114: 111 | AE114: 0 | AF114: 0 | AG114: 0 | AH114: 0.1000000015 | AI114: 0.5 | AJ114: 0.400000006 | AK114: 0 | AL114: 1.000000007 | AN114: 0.1449437948 | AO114: 0.05311234668 | AP114: 2.540723641
AD115: 112 | AE115: 0 | AF115: 0 | AG115: 0 | AH115: 0.1000000015 | AI115: 0.6000000238 | AJ115: 0 | AK115: 0.3000000119 | AL115: 1.000000037 | AN115: 0.1644629005 | AO115: 0.0730901584 | AP115: 2.113320095
AD116: 113 | AE116: 0 | AF116: 0 | AG116: 0 | AH116: 0.1000000015 | AI116: 0.6000000238 | AJ116: 0.1000000015 | AK116: 0.1999999881 | AL116: 1.000000015 | AN116: 0.1609902974 | AO116: 0.06741996109 | AP116: 2.239548865
AD117: 114 | AE117: 0 | AF117: 0 | AG117: 0 | AH117: 0.1000000015 | AI117: 0.6000000238 | AJ117: 0.200000003 | AK117: 0.09999996424 | AL117: 0.9999999925 | AN117: 0.1575176942 | AO117: 0.06235251948 | AP117: 2.365865814
AD118: 115 | AE118: 0 | AF118: 0 | AG118: 0 | AH118: 0.1000000015 | AI118: 0.6000000238 | AJ118: 0.3000000119 | AK118: 0 | AL118: 1.000000037 | AN118: 0.1540451001 | AO118: 0.05804590881 | AP118: 2.481571966
AD119: 116 | AE119: 0 | AF119: 0 | AG119: 0 | AH119: 0.1000000015 | AI119: 0.6999999881 | AJ119: 0 | AK119: 0.1999999881 | AL119: 0.9999999776 | AN119: 0.1700915903 | AO119: 0.07254397869 | AP119: 2.206821203
AD120: 117 | AE120: 0 | AF120: 0 | AG120: 0 | AH120: 0.1000000015 | AI120: 0.6999999881 | AJ120: 0.1000000015 | AK120: 0.09999996424 | AL120: 0.9999999553 | AN120: 0.1666189872 | AO120: 0.06762795895 | AP120: 2.315891084
AD121: 118 | AE121: 0 | AF121: 0 | AG121: 0 | AH121: 0.1000000015 | AI121: 0.6999999881 | AJ121: 0.200000003 | AK121: 0 | AL121: 0.9999999925 | AN121: 0.1631463922 | AO121: 0.06343151629 | AP121: 2.414358054
AD122: 119 | AE122: 0 | AF122: 0 | AG122: 0 | AH122: 0.1000000015 | AI122: 0.8000000119 | AJ122: 0 | AK122: 0.09999996424 | AL122: 0.9999999776 | AN122: 0.1757202916 | AO122: 0.0732466355 | AP122: 2.26249698
AD123: 120 | AE123: 0 | AF123: 0 | AG123: 0 | AH123: 0.1000000015 | AI123: 0.8000000119 | AJ123: 0.1000000015 | AK123: 0 | AL123: 1.000000015 | AN123: 0.1722476967 | AO123: 0.06916365772 | AP123: 2.345851883
AD124: 121 | AE124: 0 | AF124: 0 | AG124: 0 | AH124: 0.1000000015 | AI124: 0.9000000358 | AJ124: 0 | AK124: 0 | AL124: 1.000000037 | AN124: 0.1813490011 | AO124: 0.07516308874 | AP124: 2.279696112
AD125: 122 | AE125: 0 | AF125: 0 | AG125: 0 | AH125: 0.200000003 | AI125: 0 | AJ125: 0 | AK125: 0.8000000119 | AL125: 1.000000015 | AN125: 0.1244353901 | AO125: 0.08691541851 | AP125: 1.31662934
AD126: 123 | AE126: 0 | AF126: 0 | AG126: 0 | AH126: 0.200000003 | AI126: 0 | AJ126: 0.1000000015 | AK126: 0.6999999881 | AL126: 0.9999999925 | AN126: 0.120962787 | AO126: 0.07934804261 | AP126: 1.398431308
AD127: 124 | AE127: 0 | AF127: 0 | AG127: 0 | AH127: 0.200000003 | AI127: 0 | AJ127: 0.200000003 | AK127: 0.6000000238 | AL127: 1.00000003 | AN127: 0.117490192 | AO127: 0.07195165008 | AP127: 1.493922542
AD128: 125 | AE128: 0 | AF128: 0 | AG128: 0 | AH128: 0.200000003 | AI128: 0 | AJ128: 0.3000000119 | AK128: 0.5 | AL128: 1.000000015 | AN128: 0.1140175897 | AO128: 0.06478480995 | AP128: 1.60558609
AD129: 126 | AE129: 0 | AF129: 0 | AG129: 0 | AH129: 0.200000003 | AI129: 0 | AJ129: 0.400000006 | AK129: 0.3999999762 | AL129: 0.9999999851 | AN129: 0.1105449858 | AO129: 0.05793278664 | AP129: 1.735545477
AD130: 127 | AE130: 0 | AF130: 0 | AG130: 0 | AH130: 0.200000003 | AI130: 0 | AJ130: 0.5 | AK130: 0.3000000119 | AL130: 1.000000015 | AN130: 0.1070723901 | AO130: 0.05152135342 | AP130: 1.884119567
AD131: 128 | AE131: 0 | AF131: 0 | AG131: 0 | AH131: 0.200000003 | AI131: 0 | AJ131: 0.6000000238 | AK131: 0.1999999881 | AL131: 1.000000015 | AN131: 0.1035997893 | AO131: 0.04573615268 | AP131: 2.04651646
AD132: 129 | AE132: 0 | AF132: 0 | AG132: 0 | AH132: 0.200000003 | AI132: 0 | AJ132: 0.6999999881 | AK132: 0.09999996424 | AL132: 0.9999999553 | AN132: 0.1001271823 | AO132: 0.04084416851 | AP132: =(AN132-RFR)/AO132 -> 2.206610775
AD133: 130 | AE133: 0 | AF133: 0 | AG133: 0 | AH133: 0.200000003 | AI133: 0 | AJ133: 0.8000000119 | AK133: 0 | AL133: =SUM(AE133:AK133) -> 1.000000015 | AN133: =AE133*$C$5+AF133*$C$6+AG133*$C$7+AH133*$C$8+AI133*$C$9+AJ133*$C$10+AK133*$C$11 -> 0.09665458968 | AO133: =SDP(7,$E$5:$K$11,AE133:AK133) -> 0.03719948977 | AP133: 2.329456404 | AQ133: =IF(AP133>=0.9999*$AP$2,"Max. Sharpe","") -> 
AD134: 131 | AE134: 0 | AF134: 0 | AG134: 0 | AH134: 0.200000003 | AI134: 0.1000000015 | AJ134: 0 | AK134: 0.6999999881 | AL134: 0.9999999925 | AN134: 0.1300640871 | AO134: 0.08078733832 | AP134: 1.486174562
AD135: 132 | AE135: 0 | AF135: 0 | AG135: 0 | AH135: 0.200000003 | AI135: 0.1000000015 | AJ135: 0.1000000015 | AK135: 0.6000000238 | AL135: 1.00000003 | AN135: 0.1265914922 | AO135: 0.07332154363 | AP135: 1.590139629
AD136: 133 | AE136: 0 | AF136: 0 | AG136: 0 | AH136: 0.200000003 | AI136: 0.1000000015 | AJ136: 0.200000003 | AK136: 0.5 | AL136: 1.000000007 | AN136: 0.123118889 | AO136: 0.06606516987 | AP136: 1.712231865
AD137: 134 | AE137: 0 | AF137: 0 | AG137: 0 | AH137: 0.200000003 | AI137: 0.1000000015 | AJ137: 0.3000000119 | AK137: 0.3999999762 | AL137: 0.9999999925 | AN137: 0.1196462867 | AO137: 0.05909542367 | AP137: 1.85541079
AD138: 135 | AE138: 0 | AF138: 0 | AG138: 0 | AH138: 0.200000003 | AI138: 0.1000000015 | AJ138: 0.400000006 | AK138: 0.3000000119 | AL138: 1.000000022 | AN138: 0.116173691 | AO138: 0.05252653733 | AP138: 2.021334289
AD139: 136 | AE139: 0 | AF139: 0 | AG139: 0 | AH139: 0.200000003 | AI139: 0.1000000015 | AJ139: 0.5 | AK139: 0.1999999881 | AL139: 0.9999999925 | AN139: 0.1127010871 | AO139: 0.04652858526 | AP139: 2.20726864
AD140: 137 | AE140: 0 | AF140: 0 | AG140: 0 | AH140: 0.200000003 | AI140: 0.1000000015 | AJ140: 0.6000000238 | AK140: 0.09999996424 | AL140: 0.9999999925 | AN140: 0.1092284863 | AO140: 0.04135076702 | AP140: 2.399677042
AD141: 138 | AE141: 0 | AF141: 0 | AG141: 0 | AH141: 0.200000003 | AI141: 0.1000000015 | AJ141: 0.6999999881 | AK141: 0 | AL141: 0.9999999925 | AN141: 0.1057558875 | AO141: 0.03733587638 | AP141: 2.564715143
AD142: 139 | AE142: 0 | AF142: 0 | AG142: 0 | AH142: 0.200000003 | AI142: 0.200000003 | AJ142: 0 | AK142: 0.6000000238 | AL142: 1.00000003 | AN142: 0.1356927923 | AO142: 0.07537162304 | AP142: 1.667640781
AD143: 140 | AE143: 0 | AF143: 0 | AG143: 0 | AH143: 0.200000003 | AI143: 0.200000003 | AJ143: 0.1000000015 | AK143: 0.5 | AL143: 1.000000007 | AN143: 0.1322201892 | AO143: 0.06810261309 | AP143: 1.794647571
AD144: 141 | AE144: 0 | AF144: 0 | AG144: 0 | AH144: 0.200000003 | AI144: 0.200000003 | AJ144: 0.200000003 | AK144: 0.3999999762 | AL144: 0.9999999851 | AN144: 0.1287475861 | AO144: 0.06110772863 | AP144: 1.943249876
AD145: 142 | AE145: 0 | AF145: 0 | AG145: 0 | AH145: 0.200000003 | AI145: 0.200000003 | AJ145: 0.3000000119 | AK145: 0.3000000119 | AL145: 1.00000003 | AN145: 0.1252749919 | AO145: 0.05449264869 | AP145: 2.115422808
AD146: 143 | AE146: 0 | AF146: 0 | AG146: 0 | AH146: 0.200000003 | AI146: 0.200000003 | AJ146: 0.400000006 | AK146: 0.1999999881 | AL146: 1 | AN146: 0.121802388 | AO146: 0.04841329157 | AP146: 2.309332507
AD147: 144 | AE147: 0 | AF147: 0 | AG147: 0 | AH147: 0.200000003 | AI147: 0.200000003 | AJ147: 0.5 | AK147: 0.09999996424 | AL147: 0.9999999702 | AN147: 0.1183297841 | AO147: 0.04309697822 | AP147: 2.513628301
AD148: 145 | AE148: 0 | AF148: 0 | AG148: 0 | AH148: 0.200000003 | AI148: 0.200000003 | AJ148: 0.6000000238 | AK148: 0 | AL148: 1.00000003 | AN148: 0.1148571915 | AO148: 0.03885817155 | AP148: 2.698459224
AD149: 146 | AE149: 0 | AF149: 0 | AG149: 0 | AH149: 0.200000003 | AI149: 0.3000000119 | AJ149: 0 | AK149: 0.5 | AL149: 1.000000015 | AN149: 0.1413214908 | AO149: 0.07083183527 | AP149: 1.853989668
AD150: 147 | AE150: 0 | AF150: 0 | AG150: 0 | AH150: 0.200000003 | AI150: 0.3000000119 | AJ150: 0.1000000015 | AK150: 0.3999999762 | AL150: 0.9999999925 | AN150: 0.1378488876 | AO150: 0.06388946623 | AP150: 2.001094941
AD151: 148 | AE151: 0 | AF151: 0 | AG151: 0 | AH151: 0.200000003 | AI151: 0.3000000119 | AJ151: 0.200000003 | AK151: 0.3000000119 | AL151: 1.00000003 | AN151: 0.1343762927 | AO151: 0.05732088536 | AP151: 2.169825046
AD152: 149 | AE152: 0 | AF152: 0 | AG152: 0 | AH152: 0.200000003 | AI152: 0.3000000119 | AJ152: 0.3000000119 | AK152: 0.1999999881 | AL152: 1.000000015 | AN152: 0.1309036903 | AO152: 0.05126995221 | AP152: 2.358178331
AD153: 150 | AE153: 0 | AF153: 0 | AG153: 0 | AH153: 0.200000003 | AI153: 0.3000000119 | AJ153: 0.400000006 | AK153: 0.09999996424 | AL153: 0.9999999851 | AN153: 0.1274310865 | AO153: 0.04594166949 | AP153: 2.556090969
AD154: 151 | AE154: 0 | AF154: 0 | AG154: 0 | AH154: 0.200000003 | AI154: 0.3000000119 | AJ154: 0.5 | AK154: 0 | AL154: 1.000000015 | AN154: 0.1239584908 | AO154: 0.04161455482 | AP154: 2.738428688
AD155: 152 | AE155: 0 | AF155: 0 | AG155: 0 | AH155: 0.200000003 | AI155: 0.400000006 | AJ155: 0 | AK155: 0.3999999762 | AL155: 0.9999999851 | AN155: 0.1469501863 | AO155: 0.06734535098 | AP155: 2.033550711
AD156: 153 | AE156: 0 | AF156: 0 | AG156: 0 | AH156: 0.200000003 | AI156: 0.400000006 | AJ156: 0.1000000015 | AK156: 0.3000000119 | AL156: 1.000000022 | AN156: 0.1434775914 | AO156: 0.06089124084 | AP156: 2.192065551
AD157: 154 | AE157: 0 | AF157: 0 | AG157: 0 | AH157: 0.200000003 | AI157: 0.400000006 | AJ157: 0.200000003 | AK157: 0.1999999881 | AL157: 1 | AN157: 0.1400049883 | AO157: 0.05494718626 | AP157: 2.36599901
AD158: 155 | AE158: 0 | AF158: 0 | AG158: 0 | AH158: 0.200000003 | AI158: 0.400000006 | AJ158: 0.3000000119 | AK158: 0.09999996424 | AL158: 0.9999999851 | AN158: 0.1365323859 | AO158: 0.04969656467 | AP158: 2.546099248
AD159: 156 | AE159: 0 | AF159: 0 | AG159: 0 | AH159: 0.200000003 | AI159: 0.400000006 | AJ159: 0.400000006 | AK159: 0 | AL159: 1.000000015 | AN159: 0.1330597902 | AO159: 0.04538071156 | AP159: 2.711720156
AD160: 157 | AE160: 0 | AF160: 0 | AG160: 0 | AH160: 0.200000003 | AI160: 0.5 | AJ160: 0 | AK160: 0.3000000119 | AL160: 1.000000015 | AN160: 0.1525788901 | AO160: 0.06508168578 | AP160: 2.190768238
AD161: 158 | AE161: 0 | AF161: 0 | AG161: 0 | AH161: 0.200000003 | AI161: 0.5 | AJ161: 0.1000000015 | AK161: 0.1999999881 | AL161: 0.9999999925 | AN161: 0.149106287 | AO161: 0.05929251388 | AP161: 2.346102027
AD162: 159 | AE162: 0 | AF162: 0 | AG162: 0 | AH162: 0.200000003 | AI162: 0.5 | AJ162: 0.200000003 | AK162: 0.09999996424 | AL162: 0.9999999702 | AN162: 0.1456336839 | AO162: 0.05417272076 | AP162: 2.503726635
AD163: 160 | AE163: 0 | AF163: 0 | AG163: 0 | AH163: 0.200000003 | AI163: 0.5 | AJ163: 0.3000000119 | AK163: 0 | AL163: 1.000000015 | AN163: 0.1421610897 | AO163: 0.04992865399 | AP163: 2.64699885
AD164: 161 | AE164: 0 | AF164: 0 | AG164: 0 | AH164: 0.200000003 | AI164: 0.6000000238 | AJ164: 0 | AK164: 0.1999999881 | AL164: 1.000000015 | AN164: 0.1582075914 | AO164: 0.06417036802 | AP164: 2.309595472
AD165: 162 | AE165: 0 | AF165: 0 | AG165: 0 | AH165: 0.200000003 | AI165: 0.6000000238 | AJ165: 0.1000000015 | AK165: 0.09999996424 | AL165: 0.9999999925 | AN165: 0.1547349883 | AO165: 0.05920678005 | AP165: 2.444567805
AD166: 163 | AE166: 0 | AF166: 0 | AG166: 0 | AH166: 0.200000003 | AI166: 0.6000000238 | AJ166: 0.200000003 | AK166: 0 | AL166: 1.00000003 | AN166: 0.1512623934 | AO166: 0.05506501719 | AP166: 2.565374544
AD167: 164 | AE167: 0 | AF167: 0 | AG167: 0 | AH167: 0.200000003 | AI167: 0.6999999881 | AJ167: 0 | AK167: 0.09999996424 | AL167: 0.9999999553 | AN167: 0.1638362813 | AO167: 0.06466858834 | AP167: 2.378840875
AD168: 165 | AE168: 0 | AF168: 0 | AG168: 0 | AH168: 0.200000003 | AI168: 0.6999999881 | AJ168: 0.1000000015 | AK168: 0 | AL168: 0.9999999925 | AN168: 0.1603636863 | AO168: 0.06064045802 | AP168: 2.479593513
AD169: 166 | AE169: 0 | AF169: 0 | AG169: 0 | AH169: 0.200000003 | AI169: 0.8000000119 | AJ169: 0 | AK169: 0 | AL169: 1.000000015 | AN169: 0.1694649908 | AO169: 0.06654471159 | AP169: 2.396358583
AD170: 167 | AE170: 0 | AF170: 0 | AG170: 0 | AH170: 0.3000000119 | AI170: 0 | AJ170: 0 | AK170: 0.6999999881 | AL170: 1 | AN170: 0.1181800816 | AO170: 0.07596407831 | AP170: 1.424095231
AD171: 168 | AE171: 0 | AF171: 0 | AG171: 0 | AH171: 0.3000000119 | AI171: 0 | AJ171: 0.1000000015 | AK171: 0.6000000238 | AL171: 1.000000037 | AN171: 0.1147074867 | AO171: 0.06853241473 | AP171: 1.527853455
AD172: 169 | AE172: 0 | AF172: 0 | AG172: 0 | AH172: 0.3000000119 | AI172: 0 | AJ172: 0.200000003 | AK172: 0.5 | AL172: 1.000000015 | AN172: 0.1112348835 | AO172: 0.06133469939 | AP172: 1.650531992
AD173: 170 | AE173: 0 | AF173: 0 | AG173: 0 | AH173: 0.3000000119 | AI173: 0 | AJ173: 0.3000000119 | AK173: 0.3999999762 | AL173: 1 | AN173: 0.1077622812 | AO173: 0.05446378514 | AP173: 1.794996087
AD174: 171 | AE174: 0 | AF174: 0 | AG174: 0 | AH174: 0.3000000119 | AI174: 0 | AJ174: 0.400000006 | AK174: 0.3000000119 | AL174: 1.00000003 | AN174: 0.1042896855 | AO174: 0.04806004465 | AP174: 1.96191423
AD175: 172 | AE175: 0 | AF175: 0 | AG175: 0 | AH175: 0.3000000119 | AI175: 0 | AJ175: 0.5 | AK175: 0.1999999881 | AL175: 1 | AN175: 0.1008170816 | AO175: 0.04233598709 | AP175: 2.145150919
AD176: 173 | AE176: 0 | AF176: 0 | AG176: 0 | AH176: 0.3000000119 | AI176: 0 | AJ176: 0.6000000238 | AK176: 0.09999996424 | AL176: 1 | AN176: 0.09734448078 | AO176: 0.03760330379 | AP176: 2.322787414
AD177: 174 | AE177: 0 | AF177: 0 | AG177: 0 | AH177: 0.3000000119 | AI177: 0 | AJ177: 0.6999999881 | AK177: 0 | AL177: 1 | AN177: 0.09387188202 | AO177: 0.03427515179 | AP177: 2.447017085
AD178: 175 | AE178: 0 | AF178: 0 | AG178: 0 | AH178: 0.3000000119 | AI178: 0.1000000015 | AJ178: 0 | AK178: 0.6000000238 | AL178: 1.000000037 | AN178: 0.1238087868 | AO178: 0.06990408152 | AP178: 1.628070698
AD179: 176 | AE179: 0 | AF179: 0 | AG179: 0 | AH179: 0.3000000119 | AI179: 0.1000000015 | AJ179: 0.1000000015 | AK179: 0.5 | AL179: 1.000000015 | AN179: 0.1203361837 | AO179: 0.06261277944 | AP179: 1.762199102
AD180: 177 | AE180: 0 | AF180: 0 | AG180: 0 | AH180: 0.3000000119 | AI180: 0.1000000015 | AJ180: 0.200000003 | AK180: 0.3999999762 | AL180: 0.9999999925 | AN180: 0.1168635806 | AO180: 0.05561694503 | AP180: 1.92142126
AD181: 178 | AE181: 0 | AF181: 0 | AG181: 0 | AH181: 0.3000000119 | AI181: 0.1000000015 | AJ181: 0.3000000119 | AK181: 0.3000000119 | AL181: 1.000000037 | AN181: 0.1133909864 | AO181: 0.04904318973 | AP181: 2.108161947
AD182: 179 | AE182: 0 | AF182: 0 | AG182: 0 | AH182: 0.3000000119 | AI182: 0.1000000015 | AJ182: 0.400000006 | AK182: 0.1999999881 | AL182: 1.000000007 | AN182: 0.1099183825 | AO182: 0.04308513179 | AP182: 2.319091955
AD183: 180 | AE183: 0 | AF183: 0 | AG183: 0 | AH183: 0.3000000119 | AI183: 0.1000000015 | AJ183: 0.5 | AK183: 0.09999996424 | AL183: 0.9999999776 | AN183: 0.1064457786 | AO183: 0.03803323954 | AP183: 2.535828654
AD184: 181 | AE184: 0 | AF184: 0 | AG184: 0 | AH184: 0.3000000119 | AI184: 0.1000000015 | AJ184: 0.6000000238 | AK184: 0 | AL184: 1.000000037 | AN184: 0.102973186 | AO184: 0.03429039568 | AP184: 2.711347715
AD185: 182 | AE185: 0 | AF185: 0 | AG185: 0 | AH185: 0.3000000119 | AI185: 0.200000003 | AJ185: 0 | AK185: 0.5 | AL185: 1.000000015 | AN185: 0.1294374838 | AO185: 0.06468847394 | AP185: 1.846348763
AD186: 183 | AE186: 0 | AF186: 0 | AG186: 0 | AH186: 0.3000000119 | AI186: 0.200000003 | AJ186: 0.1000000015 | AK186: 0.3999999762 | AL186: 0.9999999925 | AN186: 0.1259648807 | AO186: 0.05767156556 | AP186: 2.010780869
AD187: 184 | AE187: 0 | AF187: 0 | AG187: 0 | AH187: 0.3000000119 | AI187: 0.200000003 | AJ187: 0.200000003 | AK187: 0.3000000119 | AL187: 1.00000003 | AN187: 0.1224922858 | AO187: 0.05105413869 | AP187: 2.203392098
AD188: 185 | AE188: 0 | AF188: 0 | AG188: 0 | AH188: 0.3000000119 | AI188: 0.200000003 | AJ188: 0.3000000119 | AK188: 0.1999999881 | AL188: 1.000000015 | AN188: 0.1190196834 | AO188: 0.04501272365 | AP188: 2.421974823
AD189: 186 | AE189: 0 | AF189: 0 | AG189: 0 | AH189: 0.3000000119 | AI189: 0.200000003 | AJ189: 0.400000006 | AK189: 0.09999996424 | AL189: 0.9999999851 | AN189: 0.1155470795 | AO189: 0.03981043026 | AP189: 2.651241869
AD190: 187 | AE190: 0 | AF190: 0 | AG190: 0 | AH190: 0.3000000119 | AI190: 0.200000003 | AJ190: 0.5 | AK190: 0 | AL190: 1.000000015 | AN190: 0.1120744838 | AO190: 0.03581480682 | AP190: 2.850063783
AD191: 188 | AE191: 0 | AF191: 0 | AG191: 0 | AH191: 0.3000000119 | AI191: 0.3000000119 | AJ191: 0 | AK191: 0.3999999762 | AL191: 1 | AN191: 0.1350661823 | AO191: 0.06053591892 | AP191: 2.065983048
AD192: 189 | AE192: 0 | AF192: 0 | AG192: 0 | AH192: 0.3000000119 | AI192: 0.3000000119 | AJ192: 0.1000000015 | AK192: 0.3000000119 | AL192: 1.000000037 | AN192: 0.1315935873 | AO192: 0.0539781414 | AP192: 2.252644944
AD193: 190 | AE193: 0 | AF193: 0 | AG193: 0 | AH193: 0.3000000119 | AI193: 0.3000000119 | AJ193: 0.200000003 | AK193: 0.1999999881 | AL193: 1.000000015 | AN193: 0.1281209842 | AO193: 0.04797693714 | AP193: 2.462036788
AD194: 191 | AE194: 0 | AF194: 0 | AG194: 0 | AH194: 0.3000000119 | AI194: 0.3000000119 | AJ194: 0.3000000119 | AK194: 0.09999996424 | AL194: 1 | AN194: 0.1246483819 | AO194: 0.04276724532 | AP194: 2.68075208
AD195: 192 | AE195: 0 | AF195: 0 | AG195: 0 | AH195: 0.3000000119 | AI195: 0.3000000119 | AJ195: 0.400000006 | AK195: 0 | AL195: 1.00000003 | AN195: 0.1211757862 | AO195: 0.03867031634 | AP195: 2.874964486
AD196: 193 | AE196: 0 | AF196: 0 | AG196: 0 | AH196: 0.3000000119 | AI196: 0.400000006 | AJ196: 0 | AK196: 0.3000000119 | AL196: 1.00000003 | AN196: 0.140694886 | AO196: 0.05767649785 | AP196: =(AN196-RFR)/AO196 -> 2.265998993
AD197: 194 | AE197: 0 | AF197: 0 | AG197: 0 | AH197: 0.3000000119 | AI197: 0.400000006 | AJ197: 0.1000000015 | AK197: 0.1999999881 | AL197: =SUM(AE197:AK197) -> 1.000000007 | AN197: =AE197*$C$5+AF197*$C$6+AG197*$C$7+AH197*$C$8+AI197*$C$9+AJ197*$C$10+AK197*$C$11 -> 0.1372222829 | AO197: =SDP(7,$E$5:$K$11,AE197:AK197) -> 0.051800102 | AP197: 2.456023792 | AQ197: =IF(AP197>=0.9999*$AP$2,"Max. Sharpe","") -> 
AD198: 195 | AE198: 0 | AF198: 0 | AG198: 0 | AH198: 0.3000000119 | AI198: 0.400000006 | AJ198: 0.200000003 | AK198: 0.09999996424 | AL198: 0.9999999851 | AN198: 0.1337496798 | AO198: 0.04668005928 | AP198: 2.651018051
AD199: 196 | AE199: 0 | AF199: 0 | AG199: 0 | AH199: 0.3000000119 | AI199: 0.400000006 | AJ199: 0.3000000119 | AK199: 0 | AL199: 1.00000003 | AN199: 0.1302770856 | AO199: 0.04259002581 | AP199: 2.824066981
AD200: 197 | AE200: 0 | AF200: 0 | AG200: 0 | AH200: 0.3000000119 | AI200: 0.5 | AJ200: 0 | AK200: 0.1999999881 | AL200: 1 | AN200: 0.1463235816 | AO200: 0.05630753934 | AP200: 2.421053791
... 2050 more rows

Sheet Mon. ROR Histogram
E2: ROR histogram from back testing and real trading the latest version of the strategies (equal weighs, before fees)
A5: Bin | B5: Frequency | C5: Cumulative
A6: -0.01977642509 | B6: 1 | C6: 0.01666666667
A7: -0.0120539756 | B7: 2 | C7: 0.05
A8: -0.004331526118 | B8: 6 | C8: 0.15
A9: 0.003390923369 | B9: 8 | C9: 0.2833333333
A10: 0.01111337286 | B10: 17 | C10: 0.5666666667
A11: 0.01883582234 | B11: 11 | C11: 0.75
A12: 0.02655827183 | B12: 8 | C12: 0.8833333333
A13: More | B13: 7 | C13: 1
